Workbook

Sheet 使用上の注意点
A1: 使用上の注意点 免責事項 １ 国立研究開発法人農業・食品産業技術総合研究機構 （以下、「農研機構」と記します。）は、本プログラムに関して不具合やエラーや障害が生じないことを一切保証いたしません。 ２ 農研機構は、本プログラム及び本プログラムのダウンロードに起因してご使用者に直接または間接的損害が生じても、いかなる責任をも負わず、一切の損害賠償を行わないものとします。 ３ 農研機構は、本プログラムに不具合、不備等があっても、程度の如何にかかわらず訂正、修補する義務を負わないものとします。 著作権その他の権利 １ 本プログラムの著作権その他一切の権利は、農研機構に帰属します。 ２ 本プログラムを無断で複製、転載、改変などに類する行為と無断で解析（逆コンパイル、逆アセンブル、リバースエンジニアリング等）することを禁止します。 ３ 本プログラムを販売、貸与、再使用許諾、営業使用することなどは、いずれもできないものとします。 ４ 事前の告知なしに本プログラムの変更、又は配布を中止する場合があります。 ５ 本プログラムを用いて得られた計算結果を使用して、学術雑誌等への論文等発表する場合は、論文等の中に本プログラムを使用したことの記載をお願いします。 | B1: y
A5: メモ機能による補足説明について 各シートでは、メモ機能により補足説明しています。本セルのように右上角に赤い三角形のあるセルでは、このセルにポインターを当てた時にメモが表示されます。 ※赤い三角形が表示されていない場合、または常にメモが表示される場合には、以下の手順にしたがって設定を変更してください。 （設定変更手順） ①本画面の左上にある「ファイル」をクリック。 ②「オプション」をクリック。「Excelのオプション」画面が立ち上がります。 ③画面左側の「詳細設定」をクリック。画面右側が切り替わります。 ④画面右側の下の方にある「表示」の「コメントのあるセルに対して表示：」について、「インジケーターのみ。ただしポイント時にコメントを表示（I）」を選択。 ⑤「OK」をクリック。

Sheet 環境
A1: 環境シート | L1: 操作手順 （１）環境調査のデータを入力し、①のボタンを押してください。AA～AV列が自動計算されます。 （２）計算終了後は、「魚類」シートに移動してください。 ※B4セルにポインターを当ててもメモが表示されない場合、またはメモが常に表示されている場合には、「使用上の注意」シートのA5セルの手順で設定変更してください。 ※未計測のセルは、空欄にしてください。
D2: 水路幅（cm） | E2: 水深（cm） | H2: 流速（cm/秒） | Q2: 陸地（cm） | R2: 沈水植物の幅（cm） | S2: 抽水植物の幅（cm） | T2: 垂下植物の幅（cm） | U2: リタ― （ｃｍ） | V2: 河床材料％ | AA2: 計算結果
B3: 調査区間名 | AB3: 水路幅（cm） | AC3: 水深（cm） | AG3: 流速（cm/s） | AK3: 陸地（％） | AL3: 沈水植物（％） | AM3: 抽水植物（％） | AN3: 垂下植物（％） | AO3: リタ―（％） | AP3: 全植物（％） | AQ3: 全カバー（％） | AR3: 河床材料（％） | AV3: N | AZ3: 水路幅cm | BA3: 水深cm | BE3: 流速cm/s | BI3: 陸地％ | BJ3: 沈水植物％ | BK3: 抽水植物％ | BL3: 垂下植物％ | BM3: リタ― | BN3: 全植物％ | BO3: 全カバー | BP3: 河床材料％
E4: 左 | F4: 中 | G4: 右 | H4: 左 1回目 | I4: 2回目 | J4: 3回目 | K4: 中 1回目 | L4: 2回目 | M4: 3回目 | N4: 右 1回目 | O4: 2回目 | P4: 3回目 | V4: 石・礫 | W4: 砂 | X4: 泥 | Y4: ｺﾝｸﾘｰﾄ | AA4: 調査区間 | AC4: 最小 | AD4: 最大 | AE4: 平均 | AF4: 標準偏差 | AG4: 最小 | AH4: 最大 | AI4: 平均 | AJ4: 標準偏差 | AR4: 石・礫 | AS4: 砂 | AT4: 泥 | AU4: ｺﾝｸﾘｰﾄ | AY4: 調査地点 | BA4: 最小 | BB4: 最大 | BC4: 平均 | BD4: 標準偏差 | BE4: 最小 | BF4: 最大 | BG4: 平均 | BH4: 標準偏差 | BP4: 石・礫 | BQ4: 砂 | BR4: 泥 | BS4: ｺﾝｸﾘｰﾄ
A5: 1 | AY5: =AY11 -> 区間10 | AZ5: =AVERAGE(BA11:BA20) -> 400 | BA5: =MIN(BB11:BD20) -> 23 | BB5: =MAX(BB11:BD20) -> 45 | BC5: =AVERAGE(BB11:BD20) -> 32.93333333 | BD5: =STDEVP(BB11:BD20) -> 6.287200402 | BE5: =MIN(BW11:BY20) -> 24.5 | BF5: =MAX(BW11:BY20) -> 50.5 | BG5: =AVERAGE(BW11:BY20) -> 35.5 | BH5: =STDEVP(BW11:BY20) -> 10.15874008 | BI5: =AVERAGE(BN11:BN20) -> 0 | BJ5: =AVERAGE(BO11:BO20) -> 1.5 | BK5: 0 | BL5: 17 | BM5: =AVERAGE(BR11:BR20) -> 0 | BN5: =IFERROR(BJ5,0)+IFERROR(BK5,0)+IFERROR(BL5,0) -> 18.5 | BO5: =MIN(BN5+IFERROR(BM5,0),100) -> 18.5 | BP5: =AVERAGE(BS11:BS20) -> 62 | BQ5: =AVERAGE(BT11:BT20) -> 22 | BR5: =AVERAGE(BU11:BU20) -> 16 | BS5: =AVERAGE(BV11:BV20) -> 0
A6: 2 | AY6: N | AZ6: =COUNT(BA11:BA20) -> 5 | BA6: =COUNT(BB11:BD20) -> 15 | BB6: =COUNT(BB11:BD20) -> 15 | BC6: =COUNT(BB11:BD20) -> 15 | BD6: =COUNT(BB11:BD20) -> 15 | BE6: =COUNT(BW11:BY20) -> 5 | BF6: =COUNT(BW11:BY20) -> 5 | BG6: =COUNT(BW11:BY20) -> 5 | BH6: =COUNT(BW11:BY20) -> 5 | BI6: =COUNT(BN11:BN20) -> 5 | BJ6: =COUNT(BO11:BO20) -> 5 | BK6: 5 | BL6: 5 | BM6: 5 | BN6: =COUNT(BO11:BQ20) -> 15 | BO6: =COUNT(BO11:BR20) -> 20 | BP6: =COUNT(BS11:BS20) -> 5 | BQ6: 5 | BR6: 5 | BS6: =COUNT(BV11:BV20) -> 5
A7: 3
A8: 4
A9: 5 | BA9: 水路幅（cm） | BB9: 水深（cm） | BE9: 流速（cm/秒） | BN9: 陸地（cm） | BO9: 沈水植物の幅（cm） | BP9: 抽水植物の幅（cm） | BQ9: 垂下植物の幅（cm） | BR9: リタ― （ｃｍ） | BS9: 河床材料％ | BW9: 流速
A10: 6 | AY10: 調査地点 | BB10: 左 | BC10: 中 | BD10: 右 | BE10: 左 | BH10: 中 | BK10: 右 | BS10: 石・礫 | BT10: 砂 | BU10: 泥 | BV10: ｺﾝｸﾘｰﾄ | BW10: 左 | BX10: 中 | BY10: 右
A11: 7 | AX11: 1 | AY11: 区間10 | AZ11: 1 | BA11: 400 | BB11: 32 | BC11: 31 | BD11: 38 | BH11: 24 | BI11: 25 | BN11: 0 | BO11: 2.5 | BP11: 0 | BQ11: 30 | BR11: 0 | BS11: 40 | BT11: 30 | BU11: 30 | BV11: 0 | BX11: 24.5
A12: 8 | AX12: 2 | AZ12: 2 | BA12: 400 | BB12: 35 | BC12: 33 | BD12: 34 | BH12: 35 | BI12: 36 | BN12: 0 | BO12: 0 | BP12: 0 | BQ12: 35 | BR12: 0 | BS12: 60 | BT12: 40 | BU12: 0 | BV12: 0 | BX12: 35.5
A13: 9 | AX13: 3 | AZ13: 3 | BA13: 400 | BB13: 40 | BC13: 45 | BD13: 43 | BH13: 50 | BI13: 51 | BN13: 0 | BO13: 0 | BP13: 0 | BQ13: 20 | BR13: 0 | BS13: 40 | BT13: 30 | BU13: 30 | BV13: 0 | BX13: 50.5
A14: 10 | AX14: 4 | AZ14: 4 | BA14: 400 | BB14: 26 | BC14: 23 | BD14: 24 | BH14: 42 | BI14: 43 | BN14: 0 | BO14: 5 | BP14: 0 | BQ14: 0 | BR14: 0 | BS14: 80 | BT14: 10 | BU14: 10 | BV14: 0 | BX14: 42.5
A15: 11 | AX15: 5 | AZ15: 5 | BA15: 400 | BB15: 30 | BC15: 28 | BD15: 32 | BH15: 24 | BI15: 25 | BN15: 0 | BO15: 0 | BP15: 0 | BQ15: 0 | BR15: 0 | BS15: 90 | BT15: 0 | BU15: 10 | BV15: 0 | BX15: 24.5
A16: 12 | AX16: 6
A17: 13 | AX17: 7
A18: 14 | AX18: 8
A19: 15 | AX19: 9
A20: 16 | AX20: 10
A21: 17
A22: 18
A23: 19
A24: 20
A25: 21
A26: 22
A27: 23
A28: 24
A29: 25
A30: 26
A31: 27
A32: 28
A33: 29
A34: 30
A35: 31
A36: 32
A37: 33
A38: 34
A39: 35
A40: 36
A41: 37
A42: 38
A43: 39
A44: 40
A45: 41
A46: 42
A47: 43
A48: 44
A49: 45
A50: 46
A51: 47
A52: 48
A53: 49
A54: 50
A55: 51
A56: 52
A57: 53
A58: 54
A59: 55
A60: 56
A61: 57
A62: 58
A63: 59
A64: 60
A65: 61
A66: 62
A67: 63
A68: 64
A69: 65
A70: 66
A71: 67
A72: 68
A73: 69
A74: 70
A75: 71
A76: 72
A77: 73
A78: 74
A79: 75
A80: 76
A81: 77
A82: 78
A83: 79
A84: 80
A85: 81
A86: 82
A87: 83
A88: 84
A89: 85
A90: 86
A91: 87
A92: 88
A93: 89
A94: 90
A95: 91
A96: 92
A97: 93
A98: 94
A99: 95
A100: 96
A101: 97
A102: 98
A103: 99
A104: 100
A105: 101
A106: 102
A107: 103
A108: 104
A109: 105
A110: 106
A111: 107
A112: 108
A113: 109
A114: 110
A115: 111
A116: 112
A117: 113
A118: 114
A119: 115
A120: 116
A121: 117
A122: 118
A123: 119
A124: 120
A125: 121
A126: 122
A127: 123
A128: 124
A129: 125
A130: 126
A131: 127
A132: 128
A133: 129
A134: 130
A135: 131
A136: 132
A137: 133
A138: 134
A139: 135
A140: 136
A141: 137
A142: 138
A143: 139
A144: 140
A145: 141
A146: 142
A147: 143
A148: 144
A149: 145
A150: 146
A151: 147
A152: 148
A153: 149
A154: 150
A155: 151
A156: 152
A157: 153
A158: 154
A159: 155
A160: 156
A161: 157
A162: 158
A163: 159
A164: 160
A165: 161
A166: 162
A167: 163
A168: 164
A169: 165
A170: 166
A171: 167
A172: 168
A173: 169
A174: 170
A175: 171
A176: 172
A177: 173
A178: 174
A179: 175
A180: 176
A181: 177
A182: 178
A183: 179
A184: 180
A185: 181
A186: 182
A187: 183
A188: 184
A189: 185
A190: 186
A191: 187
A192: 188
A193: 189
A194: 190
A195: 191
A196: 192
A197: 193
A198: 194
A199: 195
A200: 196
... 21 more rows

Sheet 魚類
A1: 魚類シート | M1: 操作手順 （３）魚類調査のデータを入力し、②のボタンを押してください。AH～AK列が自動的に集計されます。 ※外来種など、種数などの集計から除外する種は、解析対象のチェックマークを外してください。 ※未入力の列のチェックマークは、外す必要はありません。 （４）計算終了後は、「集約」シートに移動してください。
D2: 種1 | E2: 種2 | F2: 種3 | G2: 種4 | H2: 種5 | I2: 種6 | J2: 種7 | K2: 種8 | L2: 種9 | M2: 種10 | N2: 種11 | O2: 種12 | P2: 種13 | Q2: 種14 | R2: 種15 | S2: 種16 | T2: 種17 | U2: 種18 | V2: 種19 | W2: 種20 | X2: 種21 | Y2: 種22 | Z2: 種23 | AA2: 種24 | AB2: 種25 | AC2: 種26 | AD2: 種27 | AE2: 種28 | AF2: 種29 | AG2: 種30 | AH2: 種数 | AI2: 総個体数 | AJ2: シャノンの多様度 | AK2: シンプソンの多様度
C3: 種名→
C4: 解析対象→ | D4: TRUE | E4: TRUE | F4: TRUE | G4: TRUE | H4: TRUE | I4: TRUE | J4: TRUE | K4: TRUE | L4: TRUE | M4: TRUE | N4: TRUE | O4: TRUE | P4: TRUE | Q4: TRUE | R4: TRUE | S4: TRUE | T4: TRUE | U4: TRUE | V4: TRUE | W4: TRUE | X4: TRUE | Y4: TRUE | Z4: TRUE | AA4: TRUE | AB4: TRUE | AC4: TRUE | AD4: TRUE | AE4: TRUE | AF4: TRUE | AG4: TRUE
A5: 1
A6: 2
A7: 3
A8: 4
A9: 5
A10: 6
A11: 7
A12: 8
A13: 9
A14: 10
A15: 11
A16: 12
A17: 13
A18: 14
A19: 15
A20: 16
A21: 17
A22: 18
A23: 19
A24: 20
A25: 21
A26: 22
A27: 23
A28: 24
A29: 25
A30: 26
A31: 27
A32: 28
A33: 29
A34: 30
A35: 31
A36: 32
A37: 33
A38: 34
A39: 35
A40: 36
A41: 37
A42: 38
A43: 39
A44: 40
A45: 41
A46: 42
A47: 43
A48: 44
A49: 45
A50: 46
A51: 47
A52: 48
A53: 49
A54: 50
A55: 51
A56: 52
A57: 53
A58: 54
A59: 55
A60: 56
A61: 57
A62: 58
A63: 59
A64: 60

Sheet 集約
A1: 集約シート | R1: 操作手順 （５）③と④のボタンを順に押してください。環境と魚類のデータがコピーされます。 ※Y4～BF4セルのチェックボックスは、評価スコア作成時の魚類の評価指標を選択・変更するためのものです。デフォルト（種数・総個体数）のままでも計算できます。評価指標は種を含めて最大3つ選択可能です。1～3箇所にチェックマークを入れた後、⑤のボタンを押してください。 （６）行ごとに、環境データの調査区間（Ａ列）と魚類データの調査区間（Ｘ列）が揃うように並べ替えて、⑤のボタンを押してください。評価式＊作成シートにデータがコピーされます。 ※⑤のボタンを押した際に、調査区間が揃っていない行については、W列に「レ」が表示されます。正しく並べ替えて、改めて⑤のボタンを押してください。 ＊「評価式」はマニュアルの「評価スコア式」と同義です。当プログラムでは簡単のため「評価式」としています。
AC2: 種1 | AD2: 種2 | AE2: 種3 | AF2: 種4 | AG2: 種5 | AH2: 種6 | AI2: 種7 | AJ2: 種8 | AK2: 種9 | AL2: 種10 | AM2: 種11 | AN2: 種12 | AO2: 種13 | AP2: 種14 | AQ2: 種15 | AR2: 種16 | AS2: 種17 | AT2: 種18 | AU2: 種19 | AV2: 種20 | AW2: 種21 | AX2: 種22 | AY2: 種23 | AZ2: 種24 | BA2: 種25 | BB2: 種26 | BC2: 種27 | BD2: 種28 | BE2: 種29 | BF2: 種30
B3: 水路幅（cm） | C3: 水深（cm） | G3: 流速（cm/s） | K3: 陸地（％） | L3: 沈水植物（％） | M3: 抽水植物（％） | N3: 垂下植物（％） | O3: リタ―（％） | P3: 全植物（％） | Q3: 全カバー（％） | R3: 河床材料（％） | X3: 調査区間 | Y3: 種数 | Z3: 総個体数 | AA3: シャノンの多様度 | AB3: シンプソンの多様度
A4: 調査区間 | C4: 最小 | D4: 最大 | E4: 平均 | F4: 標準偏差 | G4: 最小 | H4: 最大 | I4: 平均 | J4: 標準偏差 | R4: 石・礫 | S4: 砂 | T4: 泥 | U4: ｺﾝｸﾘｰﾄ | Y4: TRUE | Z4: TRUE | AA4: FALSE | AB4: FALSE | AC4: FALSE | AD4: FALSE | AE4: FALSE | AF4: FALSE | AG4: FALSE | AH4: FALSE | AI4: FALSE | AJ4: FALSE | AK4: FALSE | AL4: FALSE | AM4: FALSE | AN4: FALSE | AO4: FALSE | AP4: FALSE | AQ4: FALSE | AR4: FALSE | AS4: FALSE | AT4: FALSE | AU4: FALSE | AV4: FALSE | AW4: FALSE | AX4: FALSE | AY4: FALSE | AZ4: FALSE | BA4: FALSE | BB4: FALSE | BC4: FALSE | BD4: FALSE | BE4: FALSE | BF4: FALSE | BJ4: 種数 | BK4: 総個体数

Sheet 評価式作成
A1: 評価式作成シート | F1: 操作手順 （７）⑥のボタンを押してください。計算が終わると、Y21～Y80セルに各区間のスコアが表示され、グラフが更新されます。 ※計算は、PCの性能によりますが、１０～２０分で終了します。 ※グラフのレイアウトが乱れる場合があります。この場合には、適宜グラフの設定を変更してください。 ※再計算する際は、改めて⑥のボタンを押してください。なお、魚類の評価指標を変更して再計算する場合には、 集約シートのY4～BF4セルのチェックマークを変更して、改めて⑤のボタン、⑥のボタンを押してください。 | AC1: 29 | AD1: 30 | AE1: 31 | AF1: 32 | AG1: 33 | AH1: 34 | AI1: 35 | AJ1: 36 | AK1: 37 | AL1: 38 | AM1: 39 | AN1: 40 | AO1: 41 | AP1: 42 | AQ1: 43 | AR1: 44 | AS1: 45 | AT1: 46 | AU1: 47 | AV1: 48 | AW1: 49 | AX1: 50 | AY1: 51 | AZ1: 52 | BA1: 53 | BB1: 54 | BC1: 55 | BD1: 56 | BE1: 57 | BF1: 58 | BG1: 59 | BH1: 60 | BI1: 61 | BJ1: 62 | BK1: 63 | BL1: 64 | BM1: 65 | BN1: 66 | BO1: 67 | BP1: 68 | BQ1: 69 | BR1: 70 | BS1: 71 | BT1: 72 | BU1: 73 | BV1: 74 | BW1: 75 | BX1: 76 | BY1: 77 | BZ1: 78 | CA1: 79 | CB1: 80 | CC1: 81 | CD1: 82 | CE1: 83 | CF1: 84 | CS1: 97 | CT1: 98 | CU1: 99 | CV1: 100 | DH1: sample size | DI1: significance level: α (two-tailed probability)
A2: 環境の各因子と魚類データ間の相関係数 | AE2: 環境の各因子と魚類データ間の相関係数 | BK2: 1 | BL2: 2 | BM2: 3 | BN2: 4 | BO2: 5 | BP2: 6 | BQ2: 7 | BR2: 8 | BS2: 9 | BT2: 10 | BU2: 11 | BV2: 12 | BW2: 13 | BX2: 14 | BY2: 15 | BZ2: 16 | CA2: 17 | CB2: 18 | CC2: 19 | CG2: 1 | CI2: 6 | CK2: 9 | CL2: 11 | DH2: n | DI2: 0.1 | DJ2: 0.05 | DK2: 0.02 | DL2: 0.01
B3: 水路幅（cm） | C3: 水深（cm） | G3: 流速（cm/s） | L3: 植物 | R3: 河床材料（％） | V3: 魚類指標1～3 | AF3: 水路幅（cm） | AG3: 水深（cm） | AK3: 流速（cm/s） | AP3: 植物 | AV3: 河床材料（％） | BJ3: 水路幅（cm） | BK3: 水深（cm） | BO3: 流速（cm/s） | BT3: 植物 | BZ3: 河床材料（％） | CG3: 最小 | CI3: 最大 | CK3: 陸地 | CL3: 抽水植物 | DH3: 3 | DI3: 0.987688 | DJ3: 0.996917 | DK3: 0.999507 | DL3: 0.999877
C4: 最小 | D4: 最大 | E4: 平均 | F4: 標準偏差 | G4: 最小 | H4: 最大 | I4: 平均 | J4: 標準偏差 | K4: 陸地 | L4: 沈水 | M4: 抽水 | N4: 垂下 | O4: リタ― | P4: 全植物 | Q4: 全カバー | R4: 石・礫 | S4: 砂 | T4: 泥 | U4: ｺﾝｸﾘｰﾄ | V4: 種数 | W4: 総個体数 | AG4: 最小 | AH4: 最大 | AI4: 平均 | AJ4: 標準偏差 | AK4: 最小 | AL4: 最大 | AM4: 平均 | AN4: 標準偏差 | AO4: 陸地 | AP4: 沈水 | AQ4: 抽水 | AR4: 垂下 | AS4: リタ― | AT4: 全植物 | AU4: 全カバー | AV4: 石・礫 | AW4: 砂 | AX4: 泥 | AY4: ｺﾝｸﾘｰﾄ | AZ4: 種数 | BK4: 最小 | BL4: 最大 | BM4: 平均 | BN4: 標準偏差 | BO4: 最小 | BP4: 最大 | BQ4: 平均 | BR4: 標準偏差 | BS4: 陸地 | BT4: 沈水 | BU4: 抽水 | BV4: 垂下 | BW4: リタ― | BX4: 全植物 | BY4: 全カバー | BZ4: 石・礫 | CA4: 砂 | CB4: 泥 | CC4: ｺﾝｸﾘｰﾄ | CG4: -0.01951060282 | CI4: -0.08636609107 | CK4: 0.09726663526 | CL4: 0.1447376408 | CN4: 7.31310024 | CO4: 0.8897058441 | CP4: 0.8085118907 | CQ4: 0.7532607821 | CR4: 0.7764623918 | CS4: =IF(COUNTIF(CT4:CV4,"a")>0,"A",IF(COUNTIF(CT4:CV4,"b")>0,"B","C")) -> A | CT4: =IF(CP4>=LOOKUP($BX$20,$DH$3:$DH$96,$DJ$3:$DJ$96),IF(CP4>=LOOKUP($BX$20,$DH$3:$DH$96,$DL$3:$DL$96),"a","b"),"c") -> a | CU4: =IF(CQ4>=LOOKUP($BX$20,$DH$3:$DH$96,$DJ$3:$DJ$96),IF(CQ4>=LOOKUP($BX$20,$DH$3:$DH$96,$DL$3:$DL$96),"a","b"),"c") -> b | CV4: =IF(CR4>=LOOKUP($BX$20,$DH$3:$DH$96,$DJ$3:$DJ$96),IF(CR4>=LOOKUP($BX$20,$DH$3:$DH$96,$DL$3:$DL$96),"a","b"),"c") -> a | DH4: 4 | DI4: 0.9 | DJ4: 0.95 | DK4: 0.98 | DL4: 0.99
A5: 除外項目は外す | B5: - | C5: TRUE | D5: TRUE | E5: TRUE | F5: FALSE | G5: TRUE | H5: TRUE | I5: TRUE | J5: FALSE | K5: TRUE | L5: TRUE | M5: TRUE | N5: TRUE | O5: TRUE | P5: TRUE | Q5: TRUE | R5: TRUE | S5: TRUE | T5: TRUE | U5: TRUE | V5: TRUE | W5: TRUE | X5: FALSE | AE5: =V4 -> 種数 | AF5: =IFERROR(PEARSON(B21:B80,$V$21:$V$80),0) -> 0 | AG5: =IFERROR(PEARSON(C21:C80,$V$21:$V$80),0) -> 0 | AH5: =IFERROR(PEARSON(D21:D80,$V$21:$V$80),0) -> 0 | AI5: 0 | AJ5: 0 | AK5: 0 | AL5: 0 | AM5: 0 | AN5: 0 | AO5: 0 | AP5: 0 | AQ5: 0 | AR5: 0 | AS5: 0 | AT5: 0 | AU5: 0 | AV5: 0 | AW5: 0 | AX5: 0 | AY5: =IFERROR(PEARSON(U21:U80,$V$21:$V$80),0) -> 0 | BI5: 選択済 | BK5: 1 | BL5: 0 | BM5: 0 | BN5: 0 | BO5: 0 | BP5: 1 | BQ5: 0 | BR5: 0 | BS5: 1 | BT5: 0 | BU5: 1 | BV5: 0 | BW5: 0 | BX5: 0 | BY5: 0 | BZ5: 0 | CA5: 0 | CB5: 0 | CC5: 0 | CG5: -0.07148087869 | CI5: -0.06697370978 | CK5: 0.207504348 | CL5: 0.6540410636 | DH5: 5 | DI5: 0.805384 | DJ5: 0.878339 | DK5: 0.934333 | DL5: 0.958735
AE6: =W4 -> 総個体数 | AF6: =IFERROR(PEARSON(B21:B80,$W$21:$W$80),0) -> 0 | AG6: =IFERROR(PEARSON(C21:C80,$W$21:$W$80),0) -> 0 | AH6: 0 | AI6: 0 | AJ6: 0 | AK6: 0 | AL6: 0 | AM6: 0 | AN6: 0 | AO6: 0 | AP6: 0 | AQ6: 0 | AR6: 0 | AS6: 0 | AT6: 0 | AU6: 0 | AV6: 0 | AW6: 0 | AX6: 0 | AY6: =IFERROR(PEARSON(U21:U80,$W$21:$W$80),0) -> 0 | BI6: 選択肢 | BK6: 0 | BL6: 0 | BM6: 0 | BN6: 0 | BO6: 0 | BP6: 0 | BQ6: 0 | BR6: 0 | BS6: 0 | BT6: 0 | BU6: 0 | BV6: 0 | BW6: 0 | BX6: 0 | BY6: 0 | BZ6: 1 | CA6: 1 | CB6: 1 | CC6: 0 | CD6: =SUM(BK6:CC6) -> 3 | CG6: -0.08573857248 | CI6: -1.793109976 | CK6: 0.734049486 | CL6: 0.5156828848 | DH6: 6 | DI6: 0.729299 | DJ6: 0.811401 | DK6: 0.882194 | DL6: 0.9172
A7: 反復回数 | B7: 500 | D7: 評価式のパラメータ | AE7: =X4 -> 0 | AF7: =IFERROR(PEARSON(B21:B80,$X$21:$X$80),0) -> 0 | AG7: =IFERROR(PEARSON(C21:C80,$X$21:$X$80),0) -> 0 | AH7: 0 | AI7: 0 | AJ7: 0 | AK7: 0 | AL7: 0 | AM7: 0 | AN7: 0 | AO7: 0 | AP7: 0 | AQ7: 0 | AR7: 0 | AS7: 0 | AT7: 0 | AU7: 0 | AV7: 0 | AW7: 0 | AX7: 0 | AY7: =IFERROR(PEARSON(U21:U80,$X$21:$X$80),0) -> 0 | BI7: 現在 | BK7: 0 | BL7: 0 | BM7: 0 | BN7: 0 | BO7: 0 | BP7: 0 | BQ7: 0 | BR7: 0 | BS7: 0 | BT7: 0 | BU7: 0 | BV7: 0 | BW7: 0 | BX7: 0 | BY7: 0 | BZ7: 0 | CA7: 0 | CB7: 0 | CC7: 0 | DH7: 7 | DI7: 0.669439 | DJ7: 0.754492 | DK7: 0.832874 | DL7: 0.874526
F8: 水深 | H8: 流速 | J8: 陸地 | K8: 植物 | L8: 河床材料 | M8: 定数 | AE8: Σ|R| | AF8: =ABS(AF5)+ABS(AF6)+ABS(AF7) -> 0 | AG8: =ABS(AG5)+ABS(AG6)+ABS(AG7) -> 0 | AH8: 0 | AI8: 0 | AJ8: 0 | AK8: 0 | AL8: 0 | AM8: 0 | AN8: 0 | AO8: 0 | AP8: 0 | AQ8: 0 | AR8: 0 | AS8: 0 | AT8: 0 | AU8: 0 | AV8: 0 | AW8: 0 | AX8: 0 | AY8: =ABS(AY5)+ABS(AY6)+ABS(AY7) -> 0 | DH8: 8 | DI8: 0.621489 | DJ8: 0.706734 | DK8: 0.78872 | DL8: 0.834342
AE9: 標準偏差 | AF9: =IFERROR(STDEV(B21:B80),0) -> 0 | AG9: =IFERROR(STDEV(C21:C80),0) -> 0 | AH9: 0 | AI9: 0 | AJ9: 0 | AK9: 0 | AL9: 0 | AM9: 0 | AN9: 0 | AO9: 0 | AP9: 0 | AQ9: 0 | AR9: 0 | AS9: 0 | AT9: 0 | AU9: 0 | AV9: 0 | AW9: 0 | AX9: 0 | AY9: 0 | AZ9: 0 | BL9: 1 | BN9: 6 | BP9: 9 | BQ9: 11 | CG9: 1 | DH9: 9 | DI9: 0.582206 | DJ9: 0.666384 | DK9: 0.749776 | DL9: 0.797681
D10: 係数 | AW10: 魚類データ間の相関係数 | BL10: u1 | BM10: u2 | BN10: u3 | BO10: u4 | BP10: u5 | BQ10: u6 | BR10: u7 | CG10: 最小 | CH10: 最小^2 | DH10: 10 | DI10: 0.549357 | DJ10: 0.631897 | DK10: 0.715459 | DL10: 0.764592
D11: 標準化係数 | AW11: =V4&"-"&W4 -> 種数-総個体数 | AX11: =IFERROR(PEARSON(W21:W80,$V$21:$V$80),0) -> 0 | BL11: 水深 | BN11: 流速 | BP11: 陸地 | BQ11: 植物 | BR11: 底質 | BS11: 適合度 | BT11: 相関係数 | BU11: 相関係数 | BV11: 相関係数 | CG11: 0.8062905798 | CH11: 0 | CI11: 0.7722972631 | CJ11: 0 | CK11: 0.6487361097 | CL11: 0.04117993614 | CM11: 0.5840960741 | CN11: 0.6772372502 | CO11: 0.4493144162 | CP11: 0.2344988837 | CQ11: 0.3796102016 | DH11: 11 | DI11: 0.521404 | DJ11: 0.602069 | DK11: 0.685095 | DL11: 0.734786
A12: 開始時刻 | D12: 式の適合度 | AW12: =V4&"-"&X4 -> 種数- | AX12: =IFERROR(PEARSON(X21:X80,$V$21:$V$80),0) -> 0 | BL12: 最小 | BM12: 最小^2 | BN12: 最大 | BO12: 最大^2 | BP12: 陸地 | BQ12: 抽水植物 | DH12: 12 | DI12: 0.497265 | DJ12: 0.575983 | DK12: 0.65807 | DL12: 0.707888
F13: 適合度 | AW13: =W4&"-"&X4 -> 総個体数- | AX13: =IFERROR(PEARSON(X21:X80,$W$21:$W$80),0) -> 0 | BL13: -0.1772926387 | BM13: 0 | BN13: -0.7759519815 | BO13: 0 | BP13: 0.959969997 | BQ13: 0.999999996 | BR13: -0.9750000238 | BS13: =(BT13+BU13+BV13)/6+0.5 -> 0.8853731574 | BT13: =IFERROR(PEARSON(BI21:BI80,$BS$21:$BS$80),0) -> 0.7807163875 | BU13: =IFERROR(PEARSON(BJ21:BJ80,$BS$21:$BS$80),0) -> 0.7458271874 | BV13: =IFERROR(PEARSON(BK21:BK80,$BS$21:$BS$80),0) -> 0.7856953694 | CG13: 2 | DH13: 13 | DI13: 0.476156 | DJ13: 0.552943 | DK13: 0.633863 | DL13: 0.683528
D14: 値 | AE14: スコアと魚類指標間の相関確認用グラフ | BK14: 係数 | BL14: =4/($BT$19-$BT$20)*BL13 -> -0.02045038964 | BM14: =4/($BT$19-$BT$20)*BM13 -> 0 | BN14: -0.08950467698 | BO14: 0 | BP14: 0.1107308268 | BQ14: 0.1153482158 | BR14: -0.1124645136 | BS14: =1-4*BT20/(BT19-BT20) -> 7.322108113 | CG14: 最大 | CH14: 最大^2 | DH14: 14 | DI14: 0.4575 | DJ14: 0.532413 | DK14: 0.612047 | DL14: 0.661376
D15: モデルの評価 | BL15: =IFERROR(ABS(BL14/STDEVP(BL21:BL80)),0) -> 0.004170943964 | BM15: =IFERROR(ABS(BM14/STDEVP(BM21:BM80)),0) -> 0 | BN15: 0.003863851221 | BO15: 0 | BP15: 0.01315059567 | BQ15: 0.02901669747 | BR15: =IFERROR(ABS(BR14/STDEVP(BR21:BR80)),0) -> 0 | BS15: =SUM(BL15:BR15) -> 0.05020208833 | CG15: 0.7609662765 | CH15: 0 | CI15: 1 | CJ15: 0 | CK15: 0.7413794712 | CL15: 0.5295694008 | CM15: -0.2938215137 | CN15: 0.6343515934 | CO15: 0.1535279361 | CP15: 0.6093752123 | CQ15: 0.04320641217 | DH15: 15 | DI15: 0.440861 | DJ15: 0.513977 | DK15: 0.59227 | DL15: 0.641145
G16: a：p*<0.01，b：p<0.05，c：p≧0.05 | AG16: =IF(I14>LOOKUP($BX$20,$DH$3:$DH$96,$DJ$3:$DJ$96),IF(I14>LOOKUP($BX$20,$DH$3:$DH$96,$DL$3:$DL$96),"**","*"),"") ->  | BL16: =IF(BL14>0,BL15/$BS$15,-BL15/$BS$15) -> -0.08308307688 | BM16: =IF(BM14>0,BM15/$BS$15,-BM15/$BS$15) -> 0 | BN16: -0.07696594603 | BO16: 0 | BP16: 0.2619531599 | BQ16: 0.5779978172 | BR16: 0 | CG16: 1 | CH16: 0 | CI16: 0 | CJ16: 0 | CK16: 0 | CL16: 0 | CM16: 0 | DH16: 16 | DI16: 0.425902 | DJ16: 0.497309 | DK16: 0.574245 | DL16: 0.622591
G17: *相関係数rに対するp値 | BK17: SD | BL17: =IFERROR(STDEV(BL21:BL80),0) -> 5.168279318 | BM17: =IFERROR(STDEV(BM21:BM80),0) -> 229.3920467 | BN17: =IFERROR(STDEV(BN21:BN80),0) -> 24.4176621 | BO17: 3274.957241 | BP17: 8.875684637 | BQ17: 4.190266499 | BR17: 0 | BV17: ↓1/（ベストモデルのスコアの標準偏差） | CG17: 3 | DH17: 17 | DI17: 0.41236 | DJ17: 0.482146 | DK17: 0.557737 | DL17: 0.605506
BI18: y1 | BJ18: y2 | BK18: y3 | BL18: x1 | BM18: x1^2 | BN18: x2 | BO18: x2^2 | BP18: x3 | BQ18: x4 | BR18: x5 | BS18: y' | BV18: =IFERROR(1/STDEV(BV21:BV80),0) -> 0.8502753395 | CG18: 平均 | CH18: 平均^2 | DH18: 18 | DI18: 0.400027 | DJ18: 0.468277 | DK18: 0.542548 | DL18: 0.589714
C19: 水深（cm） | G19: 流速（cm/s） | K19: 陸地・植物（％） | R19: 河床材料（％） | V19: 魚類指標1～3 | BL19: 水深 | BN19: 流速 | BP19: 陸地 | BQ19: 植物 | BR19: 底質 | BS19: max(y') | BT19: =MAX(BS21:BS80) -> -20.13128758 | BX19: ペア数 | CG19: 0.8475032234 | CH19: 0 | CI19: -0.2543651164 | CJ19: 0 | CK19: 0.2115921495 | CL19: 0.08035686782 | CM19: -0.5428965092 | CN19: 0.7081381446 | CO19: 0.3637631473 | CP19: 0.5452771085 | CQ19: 0.3397886117 | DH19: 19 | DI19: 0.388733 | DJ19: 0.455531 | DK19: 0.528517 | DL19: 0.575067
A20: 調査区間 | B20: 水路幅（cm） | C20: 最小 | D20: 最大 | E20: 平均 | F20: 標準偏差 | G20: 最小 | H20: 最大 | I20: 平均 | J20: 標準偏差 | K20: 陸地 | L20: 沈水植物 | M20: 抽水植物 | N20: 垂下植物 | O20: リタ― | P20: 全植物 | Q20: 全カバー | R20: 石・礫 | S20: 砂 | T20: 泥 | U20: ｺﾝｸﾘｰﾄ | V20: 種数 | W20: 総個体数 | Y20: スコア | BL20: 最小 | BM20: 最小^2 | BN20: 最大 | BO20: 最大^2 | BP20: 陸地 | BQ20: 抽水植物 | BS20: min(y') | BT20: =MIN(BS21:BS80) -> -54.80889361 | BU20: スコア | BV20: ベストモデルのスコア | BX20: =SUM(BX21:BX80) -> 10 | BY20: =MAX(BY21:BY80) -> 10 | CG20: 1 | CH20: 0 | CI20: 0 | CJ20: 0 | CK20: 0 | CL20: 0 | CM20: 0 | DH20: 20 | DI20: 0.378341 | DJ20: 0.443763 | DK20: 0.515505 | DL20: 0.561435
BH21: 1 | BI21: 7 | BJ21: 163 | BK21: 2.461292341 | BL21: 16 | BM21: 256 | BN21: 45.5 | BO21: 2070.25 | BP21: 5 | BQ21: 0 | BS21: =IF(BX21=1,SUMPRODUCT(BL21:BR21,$BL$13:$BR$13),"") -> -33.34264739 | BT21: =SUMPRODUCT($BL$14:$BR$14,BL21:BR21)+$BS$14 -> 3.476093211 | BU21: =ROUND(BT21,0) -> 3 | BV21: 3.557606628 | BW21: 4 | BX21: =IF(COUNT(BI21:BK21)*COUNT(BL21:BR21)>0,1,0) -> 1 | BY21: =IF(COUNT(BI21:BR21)>0,BH21,0) -> 1 | BZ21: =IF(BX21=1,SUMPRODUCT(BL21:BR21,$BL$14:$BR$14)+$BS$14,"") -> 3.476093211 | CI21: 5 | DH21: 21 | DI21: 0.368737 | DJ21: 0.432858 | DK21: 0.503397 | DL21: 0.548711
BH22: 2 | BI22: 8 | BJ22: 136 | BK22: 2.58555344 | BL22: 30 | BM22: 900 | BN22: 42.5 | BO22: 1806.25 | BP22: 4.5 | BQ22: 0 | BS22: =IF(BX22=1,SUMPRODUCT(BL22:BR22,$BL$13:$BR$13),"") -> -33.97687339 | BT22: 3.402936373 | BU22: =ROUND(BT22,0) -> 3 | BV22: 3.494923144 | BW22: 3 | BX22: =IF(COUNT(BI22:BK22)*COUNT(BL22:BR22)>0,1,0) -> 1 | BY22: =IF(COUNT(BI22:BR22)>0,BH22,0) -> 2 | CI22: 最小 | CJ22: 最小^2 | DH22: 22 | DI22: 0.359827 | DJ22: 0.422714 | DK22: 0.492094 | DL22: 0.5368
BH23: 3 | BI23: 7 | BJ23: 70 | BK23: 2.432956697 | BL23: 28 | BM23: 784 | BN23: 42.5 | BO23: 1806.25 | BP23: 10.5 | BQ23: 1.5 | BS23: -26.36246814 | BT23: 4.281244437 | BU23: 4 | BV23: 4.334650622 | BW23: 4 | BX23: 1 | BY23: 3 | CG23: 0.9242153731 | CH23: 0 | CI23: -0.7533707023 | CJ23: 0 | CK23: -0.6938160419 | CL23: -0.9899696575 | CM23: 0.1126403809 | CN23: 0.5807305498 | CO23: 0.09681983099 | CP23: 0.4670907148 | CQ23: -0.07952724727 | DH23: 23 | DI23: 0.351531 | DJ23: 0.413247 | DK23: 0.481512 | DL23: 0.52562
BH24: 4 | BI24: 8 | BJ24: 176 | BK24: 2.35651816 | BL24: 19 | BM24: 361 | BN24: 31.5 | BO24: 992.25 | BP24: 8 | BQ24: 0 | BS24: -20.13128758 | BT24: 5 | BU24: 5 | BV24: 5 | BW24: 5 | BX24: 1 | BY24: 4 | CG24: 0 | CH24: 0 | CI24: -1 | CJ24: 0 | CK24: 0 | CL24: 0 | CM24: 0 | DH24: 24 | DI24: 0.343783 | DJ24: 0.404386 | DK24: 0.471579 | DL24: 0.515101
BH25: 5 | BI25: 7 | BJ25: 67 | BK25: 2.127210967 | BL25: 19 | BM25: 361 | BN25: 45.5 | BO25: 2070.25 | BP25: 1 | BQ25: 0 | BS25: -37.7144053 | BT25: 2.971818734 | BU25: 3 | BV25: 3.110008278 | BW25: 3 | BX25: 1 | BY25: 5 | CI25: 6 | DH25: 25 | DI25: 0.336524 | DJ25: 0.39607 | DK25: 0.462231 | DL25: 0.505182
BH26: 6 | BI26: 6 | BJ26: 33 | BK26: 2.040373394 | BL26: 18 | BM26: 324 | BN26: 66.5 | BO26: 4422.25 | BP26: 10.5 | BQ26: 0 | BS26: -44.7123893 | BT26: 2.164613762 | BU26: 2 | BV26: 2.239864004 | BW26: 2 | BX26: 1 | BY26: 6 | CI26: 最大 | CJ26: 最大^2 | DH26: 26 | DI26: 0.329705 | DJ26: 0.388244 | DK26: 0.453413 | DL26: 0.495808
BH27: 7 | BI27: 3 | BJ27: 5 | BK27: 1.370950594 | BL27: 13 | BM27: 169 | BN27: 95.5 | BO27: 9120.25 | BP27: 22.5 | BQ27: 0 | BS27: -54.80889361 | BT27: 1 | BU27: 1 | BV27: 1 | BW27: 1 | BX27: 1 | BY27: 7 | CG27: -0.2496762613 | CH27: 0 | CI27: -0.8144344091 | CJ27: 0 | CK27: -0.8598359671 | CL27: 0.1761491944 | CM27: -0.006557643879 | CN27: 0.8108919232 | CO27: 0.550593823 | CP27: 0.7290792976 | CQ27: 0.5856784187 | DH27: 27 | DI27: 0.323283 | DJ27: 0.380863 | DK27: 0.445078 | DL27: 0.486932
BH28: 8 | BI28: 7 | BJ28: 36 | BK28: 2.225480557 | BL28: 20 | BM28: 400 | BN28: 89.5 | BO28: 8010.25 | BP28: 26.5 | BQ28: 9 | BS28: -38.55435024 | BT28: 2.874932584 | BU28: 3 | BV28: 3.073327635 | BW28: 3 | BX28: 1 | BY28: 8 | CG28: 0 | CH28: 0 | CI28: -1 | CJ28: 0 | CK28: 0 | CL28: 0 | CM28: 0 | DH28: 28 | DI28: 0.317223 | DJ28: 0.373886 | DK28: 0.437184 | DL28: 0.478511
BH29: 9 | BI29: 6 | BJ29: 65 | BK29: 1.448927178 | BL29: 20 | BM29: 400 | BN29: 95.5 | BO29: 9120.25 | BP29: 16.5 | BQ29: 11 | BS29: -50.80976211 | BT29: 1.461292685 | BU29: 1 | BV29: 1.871940018 | BW29: 2 | BX29: 1 | BY29: 9 | CI29: 7 | DH29: 29 | DI29: 0.31149 | DJ29: 0.367278 | DK29: 0.429693 | DL29: 0.470509
BH30: 10 | BI30: 4 | BJ30: 64 | BK30: 1.219382359 | BL30: 23 | BM30: 529 | BN30: 50.5 | BO30: 2550.25 | BP30: 0 | BQ30: 0 | BS30: -43.26330576 | BT30: 2.331762964 | BU30: 2 | BV30: 2.502868776 | BW30: 3 | BX30: 1 | BY30: 10 | CI30: 平均 | CJ30: 平均^2 | DH30: 30 | DI30: 0.306057 | DJ30: 0.361007 | DK30: 0.422572 | DL30: 0.462892
BH31: 11 | BT31: 7.322108113 | BU31: 7 | BX31: 0 | BY31: 0 | CG31: 0.9999998 | CH31: 0 | CI31: -0.4479854405 | CJ31: 0 | CK31: 0.997 | CL31: 0.8286992403 | CM31: -0.5232337117 | CN31: 0.7477253893 | CO31: 0.4150839051 | CP31: 0.6930882625 | CQ31: 0.3781801684 | DH31: 31 | DI31: 0.300898 | DJ31: 0.355046 | DK31: 0.415792 | DL31: 0.455631
BH32: 12 | BT32: 7.322108113 | BU32: 7 | BX32: 0 | BY32: 0 | CG32: 0 | CH32: 0 | CI32: -1 | CJ32: 0 | CK32: 0 | CL32: 0 | CM32: 0 | DH32: 32 | DI32: 0.295991 | DJ32: 0.34937 | DK32: 0.409327 | DL32: 0.448699
BH33: 13 | BT33: 7.322108113 | BU33: 7 | BX33: 0 | BY33: 0 | CK33: 9 | DH33: 33 | DI33: 0.291316 | DJ33: 0.343957 | DK33: 0.403153 | DL33: 0.442072
BH34: 14 | BT34: 7.322108113 | BU34: 7 | BX34: 0 | BY34: 0 | CK34: 陸地 | DH34: 34 | DI34: 0.286856 | DJ34: 0.338788 | DK34: 0.397249 | DL34: 0.435728
BH35: 15 | BT35: 7.322108113 | BU35: 7 | BX35: 0 | BY35: 0 | CG35: -0.2856349679 | CH35: 0 | CI35: -0.09754984081 | CJ35: 0 | CK35: -1 | CL35: 0.05675508499 | CM35: 0.9067838192 | CN35: 0.6580213098 | CO35: 0.237153782 | CP35: 0.5302935178 | CQ35: 0.1806805593 | DH35: 35 | DI35: 0.282594 | DJ35: 0.333845 | DK35: 0.391596 | DL35: 0.429648
BH36: 16 | BT36: 7.322108113 | BU36: 7 | BX36: 0 | BY36: 0 | CG36: 0 | CH36: 0 | CI36: 0 | CJ36: 0 | CK36: -1 | CL36: 0 | CM36: 0 | DH36: 36 | DI36: 0.278517 | DJ36: 0.329111 | DK36: 0.386177 | DL36: 0.423814
BH37: 17 | BT37: 7.322108113 | BU37: 7 | BX37: 0 | BY37: 0 | CL37: 10 | DH37: 37 | DI37: 0.274611 | DJ37: 0.324573 | DK37: 0.380976 | DL37: 0.418211
BH38: 18 | BT38: 7.322108113 | BU38: 7 | BX38: 0 | BY38: 0 | CL38: 沈水植物 | DH38: 38 | DI38: 0.270864 | DJ38: 0.320217 | DK38: 0.375979 | DL38: 0.412823
BH39: 19 | BT39: 7.322108113 | BU39: 7 | BX39: 0 | BY39: 0 | CG39: -0.999 | CH39: 0 | CI39: -1 | CJ39: 0 | CK39: -0.9319458959 | CL39: 0.204334826 | CM39: 0.8296030164 | CN39: 0.7484154276 | CO39: 0.5558266555 | CP39: 0.6175776451 | CQ39: 0.3170882651 | DH39: 39 | DI39: 0.267267 | DJ39: 0.316032 | DK39: 0.371173 | DL39: 0.407637
BH40: 20 | BT40: 7.322108113 | BU40: 7 | BX40: 0 | BY40: 0 | CG40: 0 | CH40: 0 | CI40: 0 | CJ40: 0 | CK40: 0 | CL40: 1 | CM40: 0 | DH40: 40 | DI40: 0.263809 | DJ40: 0.312006 | DK40: 0.366546 | DL40: 0.402641
BH41: 21 | BT41: 7.322108113 | BU41: 7 | BX41: 0 | BY41: 0 | CL41: 11 | DH41: 41 | DI41: 0.260482 | DJ41: 0.308131 | DK41: 0.362087 | DL41: 0.397824
BH42: 22 | BT42: 7.322108113 | BU42: 7 | BX42: 0 | BY42: 0 | CL42: 抽水植物 | DH42: 42 | DI42: 0.257278 | DJ42: 0.304396 | DK42: 0.357787 | DL42: 0.393174
BH43: 23 | BT43: 7.322108113 | BU43: 7 | BX43: 0 | BY43: 0 | CG43: -0.6805729609 | CH43: 0 | CI43: 0.5036191344 | CJ43: 0 | CK43: 0.3214768271 | CL43: -0.1509242224 | CM43: 0.3573662043 | CN43: 0.5709079859 | CO43: -0.06562715875 | CP43: 0.2805819238 | CQ43: 0.2104931502 | DH43: 43 | DI43: 0.254189 | DJ43: 0.300793 | DK43: 0.353636 | DL43: 0.388684
BH44: 24 | BT44: 7.322108113 | BU44: 7 | BX44: 0 | BY44: 0 | CG44: 0 | CH44: 0 | CI44: 0 | CJ44: 0 | CK44: 0 | CL44: -1 | CM44: 0 | DH44: 44 | DI44: 0.251209 | DJ44: 0.297315 | DK44: 0.349626 | DL44: 0.384343
BH45: 25 | BT45: 7.322108113 | BU45: 7 | BX45: 0 | BY45: 0 | CL45: 12 | DH45: 45 | DI45: 0.24833 | DJ45: 0.293955 | DK45: 0.34575 | DL45: 0.380144
BH46: 26 | BT46: 7.322108113 | BU46: 7 | BX46: 0 | BY46: 0 | CL46: 垂下植物 | DH46: 46 | DI46: 0.245549 | DJ46: 0.290706 | DK46: 0.341999 | DL46: 0.37608
BH47: 27 | BT47: 7.322108113 | BU47: 7 | BX47: 0 | BY47: 0 | CG47: 0.1746117086 | CH47: 0 | CI47: -0.2020762265 | CJ47: 0 | CK47: -0.1840337038 | CL47: -0.7333280039 | CM47: -0.3043476641 | CN47: 0.5647676355 | CO47: 0.1173112073 | CP47: 0.3255841512 | CQ47: -0.05428954546 | DH47: 47 | DI47: 0.242859 | DJ47: 0.287563 | DK47: 0.338367 | DL47: 0.372142
BH48: 28 | BT48: 7.322108113 | BU48: 7 | BX48: =IF(COUNT(BI48:BK48)*COUNT(BL48:BR48)>0,1,0) -> 0 | BY48: 0 | CG48: 0 | CH48: 0 | CI48: 0 | CJ48: 0 | CK48: 0 | CL48: -1 | CM48: 0 | DH48: 48 | DI48: 0.240255 | DJ48: 0.284519 | DK48: 0.334848 | DL48: 0.368326
BH49: 29 | BT49: 7.322108113 | BU49: 7 | BX49: =IF(COUNT(BI49:BK49)*COUNT(BL49:BR49)>0,1,0) -> 0 | BY49: 0 | CL49: 14 | DH49: 49 | DI49: 0.237734 | DJ49: 0.28157 | DK49: 0.331437 | DL49: 0.364624
BH50: 30 | BT50: 7.322108113 | BU50: 7 | BX50: 0 | BY50: 0 | CL50: 全植物 | DH50: 50 | DI50: 0.23529 | DJ50: 0.278711 | DK50: 0.328128 | DL50: 0.361031
BH51: 31 | BT51: 7.322108113 | BU51: 7 | BX51: 0 | BY51: 0 | CG51: -0.777207613 | CH51: 0 | CI51: 1 | CJ51: 0 | CK51: 0.5024567127 | CL51: -0.9048743711 | CM51: -0.2550847232 | CN51: 0.5782310977 | CO51: 0.05350297173 | CP51: 0.4118286646 | CQ51: 0.004054950089 | DH51: 51 | DI51: 0.23292 | DJ51: 0.275936 | DK51: 0.324916 | DL51: 0.357543
BH52: 32 | BT52: 7.322108113 | BU52: 7 | BX52: 0 | BY52: 0 | CG52: 0 | CH52: 0 | CI52: 0 | CJ52: 0 | CK52: 0 | CL52: -1 | CM52: 0 | DH52: 52 | DI52: 0.23062 | DJ52: 0.273243 | DK52: 0.321796 | DL52: 0.354153
BH53: 33 | BT53: 7.322108113 | BU53: 7 | BX53: 0 | BY53: 0 | CL53: 15 | DH53: 53 | DI53: 0.228387 | DJ53: 0.270628 | DK53: 0.318764 | DL53: 0.350857
BH54: 34 | BT54: 7.322108113 | BU54: 7 | BX54: 0 | BY54: 0 | CL54: 全カバー | DH54: 54 | DI54: 0.226217 | DJ54: 0.268086 | DK54: 0.315816 | DL54: 0.347652
BH55: 35 | BT55: 7.322108113 | BU55: 7 | BX55: 0 | BY55: 0 | CG55: 0.5580766439 | CH55: 0 | CI55: -0.4791563153 | CJ55: 0 | CK55: 0.6025010557 | CL55: -0.07440521431 | CM55: 0.7744024396 | CN55: 0.5782310977 | CO55: 0.05350297173 | CP55: 0.4118286646 | CQ55: 0.004054950089 | DH55: 55 | DI55: 0.224108 | DJ55: 0.265614 | DK55: 0.312948 | DL55: 0.344533
BH56: 36 | BT56: 7.322108113 | BU56: 7 | BX56: 0 | BY56: 0 | CG56: 0 | CH56: 0 | CI56: 0 | CJ56: 0 | CK56: 0 | CL56: -1 | CM56: 0 | DH56: 56 | DI56: 0.222057 | DJ56: 0.263209 | DK56: 0.310157 | DL56: 0.341496
BH57: 37 | BT57: 7.322108113 | BU57: 7 | BX57: 0 | BY57: 0 | CM57: 16 | DH57: 57 | DI57: 0.220062 | DJ57: 0.260869 | DK57: 0.30744 | DL57: 0.338538
BH58: 38 | BT58: 7.322108113 | BU58: 7 | BX58: 0 | BY58: 0 | CM58: 石・礫 | DH58: 58 | DI58: 0.218119 | DJ58: 0.258589 | DK58: 0.304792 | DL58: 0.335655
BH59: 39 | BT59: 7.322108113 | BU59: 7 | BX59: 0 | BY59: 0 | CG59: 1 | CH59: 0 | CI59: -1 | CJ59: 0 | CK59: -0.7511289135 | CL59: -0.09602834635 | CM59: 0.2207723558 | CN59: 0.661646161 | CO59: 0.2875132024 | CP59: 0.4316310973 | CQ59: 0.2507326665 | DH59: 59 | DI59: 0.216226 | DJ59: 0.256369 | DK59: 0.302211 | DL59: 0.332845
BH60: 40 | BT60: 7.322108113 | BU60: 7 | BX60: 0 | BY60: 0 | CG60: 0 | CH60: 0 | CI60: 0 | CJ60: 0 | CK60: 0 | CL60: 0 | CM60: 1 | DH60: 60 | DI60: 0.214383 | DJ60: 0.254204 | DK60: 0.299695 | DL60: 0.330104
BH61: 41 | BS61: =IF(BX61=1,SUMPRODUCT(BL61:BR61,$BL$13:$BR$13),"") ->  | BT61: =SUMPRODUCT($BL$14:$BR$14,BL61:BR61)+$BS$14 -> 7.322108113 | BU61: =ROUND(BT61,0) -> 7 | BX61: =IF(COUNT(BI61:BK61)*COUNT(BL61:BR61)>0,1,0) -> 0 | BY61: =IF(COUNT(BI61:BR61)>0,BH61,0) -> 0 | CM61: 17 | DH61: 70 | DI61: 0.198211 | DJ61: 0.235198 | DK61: 0.277562 | DL61: 0.305958
BH62: 42 | BT62: 7.322108113 | BU62: 7 | BX62: 0 | BY62: 0 | CM62: 砂 | DH62: 80 | DI62: 0.18522 | DJ62: 0.219901 | DK62: 0.259701 | DL62: 0.286433
BH63: 43 | BT63: 7.322108113 | BU63: 7 | BX63: 0 | BY63: 0 | CG63: 0.315025469 | CH63: 0 | CI63: 1 | CJ63: 0 | CK63: -1 | CL63: 0.4211916989 | CM63: 0.6921222806 | CN63: 0.6988568892 | CO63: 0.1890296796 | CP63: 0.8076971563 | CQ63: 0.1964144993 | DH63: 90 | DI63: 0.174489 | DJ63: 0.207246 | DK63: 0.244895 | DL63: 0.270222
BH64: 44 | BS64: =IF(BX64=1,SUMPRODUCT(BL64:BR64,$BL$13:$BR$13),"") ->  | BT64: 7.322108113 | BU64: 7 | BX64: 0 | BY64: 0 | CG64: 0 | CH64: 0 | CI64: 0 | CJ64: 0 | CK64: 0 | CL64: 0 | CM64: 1 | DH64: 100 | DI64: 0.16543 | DJ64: 0.196551 | DK64: 0.232362 | DL64: 0.256483
BH65: 45 | BT65: 7.322108113 | BU65: 7 | BX65: 0 | BY65: 0 | CM65: 18 | DH65: 150 | DI65: 0.134816 | DJ65: 0.160335 | DK65: 0.189803 | DL65: 0.209726
BH66: 46 | BT66: 7.322108113 | BU66: 7 | BX66: 0 | BY66: 0 | CM66: 泥 | DH66: 200 | DI66: 0.116642 | DJ66: 0.138789 | DK66: 0.164407 | DL66: 0.181758
BH67: 47 | BT67: 7.322108113 | BU67: 7 | BX67: 0 | BY67: 0 | CG67: 0.3918563916 | CH67: 0 | CI67: 0.7422897816 | CJ67: 0 | CK67: -0.5251450986 | CL67: 0.2902110157 | CM67: -0.4300940335 | CN67: 0.6884750025 | CO67: 0.2824907313 | CP67: 0.6533393474 | CQ67: 0.1950199362 | DH67: 250 | DI67: 0.104268 | DJ67: 0.124101 | DK67: 0.147067 | DL67: 0.162639
BH68: 48 | BT68: 7.322108113 | BU68: 7 | BX68: 0 | BY68: 0 | CG68: 0 | CH68: 0 | CI68: 0 | CJ68: 0 | CK68: 0 | CL68: 0 | CM68: -1 | DH68: 300 | DI68: 0.095147 | DJ68: 0.113267 | DK68: 0.134264 | DL68: 0.14851
BH69: 49 | BT69: 7.322108113 | BU69: 7 | BX69: 0 | BY69: 0 | DH69: 350 | DI69: 0.088065 | DJ69: 0.104851 | DK69: 0.124311 | DL69: 0.137521
BH70: 50 | BT70: 7.322108113 | BU70: 7 | BX70: 0 | BY70: 0 | DH70: 400 | DI70: 0.082361 | DJ70: 0.098069 | DK70: 0.116286 | DL70: 0.128658
BH71: 51 | BT71: 7.322108113 | BU71: 7 | BX71: 0 | BY71: 0 | CG71: 0.7789330582 | CH71: 0 | CI71: -1 | CJ71: 0 | CK71: 0.1492174606 | CL71: 0.3748093586 | CM71: 0.08994456381 | CN71: 0.5 | CO71: 0 | CP71: 0 | CQ71: 0 | DH71: 450 | DI71: 0.077638 | DJ71: 0.092453 | DK71: 0.109639 | DL71: 0.121314
BH72: 52 | BT72: 7.322108113 | BU72: 7 | BX72: 0 | BY72: 0 | DH72: 500 | DI72: 0.073645 | DJ72: 0.087703 | DK72: 0.104015 | DL72: 0.1151
BH73: 53 | BT73: 7.322108113 | BU73: 7 | BX73: 0 | BY73: 0 | CG73: 1 | CI73: 6 | DH73: 600 | DI73: 0.067215 | DJ73: 0.080054 | DK73: 0.094956 | DL73: 0.105086
BH74: 54 | BT74: 7.322108113 | BU74: 7 | BX74: 0 | BY74: 0 | CG74: 最小 | CH74: 最小^2 | CI74: 最大 | CJ74: 最大^2 | DH74: 700 | DI74: 0.062221 | DJ74: 0.07411 | DK74: 0.087915 | DL74: 0.0973
BH75: 55 | BT75: 7.322108113 | BU75: 7 | BX75: 0 | BY75: 0 | CG75: 0.6944267507 | CH75: 0 | CI75: -0.885832727 | CJ75: 0 | CK75: 0.69979602 | CL75: -0.7468192035 | CM75: 0.9983800054 | CN75: 0.8138484567 | CO75: 0.5765538349 | CP75: 0.7082924135 | CQ75: 0.5982444919 | DH75: 800 | DI75: 0.058196 | DJ75: 0.06932 | DK75: 0.082238 | DL75: 0.091023
BH76: 56 | BT76: 7.322108113 | BU76: 7 | BX76: 0 | BY76: 0 | CG76: 0.7874002596 | CH76: 0 | CI76: -0.2125997404 | CJ76: 0 | CK76: 0 | CL76: 0 | CM76: 0 | DH76: 900 | DI76: 0.054863 | DJ76: 0.065353 | DK76: 0.077536 | DL76: 0.085822
BH77: 57 | BT77: 7.322108113 | BU77: 7 | BX77: 0 | BY77: 0 | CG77: 2 | CI77: 6 | DH77: 1000 | DI77: 0.052045 | DJ77: 0.061997 | DK77: 0.073558 | DL77: 0.081421
BH78: 58 | BT78: 7.322108113 | BU78: 7 | BX78: 0 | BY78: 0 | CG78: 最大 | CH78: 最大^2 | CI78: 最大 | CJ78: 最大^2 | DH78: 1500 | DI78: 0.042486 | DJ78: 0.050616 | DK78: 0.060062 | DL78: 0.066489
BH79: 59 | BT79: 7.322108113 | BU79: 7 | BX79: 0 | BY79: 0 | CG79: -0.99999968 | CH79: 0 | CI79: -0.687988162 | CJ79: 0 | CK79: -0.01228354992 | CL79: 0.2270834681 | CM79: -9.999017493e-05 | CN79: 0.827513733 | CO79: 0.6160705913 | CP79: 0.6424053949 | CQ79: 0.7066064118 | DH79: 2000 | DI79: 0.036791 | DJ79: 0.043832 | DK79: 0.052016 | DL79: 0.057585
BH80: 60 | BT80: 7.322108113 | BU80: 7 | BX80: 0 | BY80: 0 | CG80: -0.8596665613 | CH80: 0 | CI80: -0.1403334387 | CJ80: 0 | CK80: 0 | CL80: 0 | CM80: 0 | DH80: 2500 | DI80: 0.032905 | DJ80: 0.039204 | DK80: 0.046525 | DL80: 0.051508
CG81: 3 | CI81: 6 | DH81: 3000 | DI81: 0.030037 | DJ81: 0.035787 | DK81: 0.042472 | DL81: 0.047022
CG82: 平均 | CH82: 平均^2 | CI82: 最大 | CJ82: 最大^2 | DH82: 3500 | DI82: 0.027808 | DJ82: 0.033132 | DK82: 0.039321 | DL82: 0.043534
CG83: 0.2298230409 | CH83: 0 | CI83: -0.9989999533 | CJ83: 0 | CK83: 1 | CL83: -0.380091453 | CM83: -1 | CN83: 0.8110505456 | CO83: 0.5506719708 | CP83: 0.7318402789 | CQ83: 0.5837910239 | DH83: 4000 | DI83: 0.026011 | DJ83: 0.030992 | DK83: 0.036782 | DL83: 0.040723
CG84: 0.5519071083 | CH84: 0 | CI84: -0.4480928917 | CJ84: 0 | CK84: 0 | CL84: 0 | CM84: 0 | DH84: 4500 | DI84: 0.024523 | DJ84: 0.029219 | DK84: 0.034678 | DL84: 0.038395
CI85: 6 | CK85: 9 | DH85: 5000 | DI85: 0.023264 | DJ85: 0.02772 | DK85: 0.032899 | DL85: 0.036425
CI86: 最大 | CJ86: 最大^2 | CK86: 陸地 | DH86: 6000 | DI86: 0.021237 | DJ86: 0.025304 | DK86: 0.030033 | DL86: 0.033252
CG87: -0.990003 | CH87: 0 | CI87: -0.6712902784 | CJ87: 0 | CK87: 0.997589363 | CL87: -1 | CM87: -0.3276900649 | CN87: 0.8552301119 | CO87: 0.6654511567 | CP87: 0.6971684679 | CQ87: 0.768761047 | DH87: 7000 | DI87: 0.019661 | DJ87: 0.023427 | DK87: 0.027805 | DL87: 0.030785
CG88: 0 | CH88: 0 | CI88: -0.1965289612 | CJ88: 0 | CK88: 0.8034710388 | CL88: 0 | CM88: 0 | DH88: 8000 | DI88: 0.018391 | DJ88: 0.021914 | DK88: 0.026009 | DL88: 0.028797
CI89: 6 | CL89: 10 | DH89: 9000 | DI89: 0.017339 | DJ89: 0.02066 | DK89: 0.024522 | DL89: 0.02715
CI90: 最大 | CJ90: 最大^2 | CL90: 沈水植物 | DH90: 10000 | DI90: 0.016449 | DJ90: 0.0196 | DK90: 0.023263 | DL90: 0.025757
CG91: -0.79992001 | CH91: 0 | CI91: -0.1193794161 | CJ91: 0 | CK91: 0.2742438892 | CL91: 0.999696 | CM91: -0.9999899864 | CN91: 0.8154727724 | CO91: 0.5852540336 | CP91: 0.7478433314 | CQ91: 0.5597392694 | DH91: 100000 | DI91: 0.005202 | DJ91: 0.006198 | DK91: 0.007357 | DL91: 0.008145
CG92: 0 | CH92: 0 | CI92: -0.003912743794 | CJ92: 0 | CK92: 0 | CL92: 0.9960872562 | CM92: 0 | DH92: 1000000 | DI92: 0.001645 | DJ92: 0.00196 | DK92: 0.002326 | DL92: 0.002576
CI93: 6 | CL93: 11 | DH93: 10000000 | DI93: 0.00052 | DJ93: 0.00062 | DK93: 0.000736 | DL93: 0.000815
CI94: 最大 | CJ94: 最大^2 | CL94: 抽水植物 | DH94: 100000000 | DI94: 0.000164 | DJ94: 0.000196 | DK94: 0.000233 | DL94: 0.000258
CG95: 0.3334169211 | CH95: 0 | CI95: -0.08370599151 | CJ95: 0 | CK95: -0.5978533 | CL95: 0.2558634956 | CM95: -0.9701980352 | CN95: 0.8625393729 | CO95: 0.7749167284 | CP95: 0.7707845976 | CQ95: 0.6295349117 | DH95: 1000000000 | DI95: 5.2e-05 | DJ95: 6.2e-05 | DK95: 7.4e-05 | DL95: 8.1e-05
CG96: 0 | CH96: 0 | CI96: -0.05315738145 | CJ96: 0 | CK96: 0 | CL96: 0.9468426186 | CM96: 0 | DH96: 10000000000 | DI96: 1.6e-05 | DJ96: 2e-05 | DK96: 2.3e-05 | DL96: 2.6e-05
CI97: 6 | CL97: 12
CI98: 最大 | CJ98: 最大^2 | CL98: 垂下植物
CG99: -0.7587371765 | CH99: 0 | CI99: -0.5681857467 | CJ99: 0 | CK99: -1 | CL99: -0.1660007337 | CM99: 0.7310243249 | CN99: 0.8134044835 | CO99: 0.5553741267 | CP99: 0.7569947277 | CQ99: 0.5680580466
CG100: 0 | CH100: 0 | CI100: -0.602095099 | CJ100: 0 | CK100: 0 | CL100: -0.397904901 | CM100: 0
CI101: 6 | CL101: 14
CI102: 最大 | CJ102: 最大^2 | CL102: 全植物
CG103: 0.699899954 | CH103: 0 | CI103: -1 | CJ103: 0 | CK103: 0.61498 | CL103: 0.1513909519 | CM103: -0.5359142423 | CN103: 0.8114743031 | CO103: 0.5570922709 | CP103: 0.7157647192 | CQ103: 0.5959888286
CG104: 0 | CH104: 0 | CI104: -0.7336937053 | CJ104: 0 | CK104: 0 | CL104: 0.2663062947 | CM104: 0
CI105: 6 | CL105: 15
CI106: 最大 | CJ106: 最大^2 | CL106: 全カバー
CG107: 0.6 | CH107: 0 | CI107: -0.9969699979 | CJ107: 0 | CK107: 0.6249096631 | CL107: 0.1509381218 | CM107: -0.8068314791 | CN107: 0.8114743031 | CO107: 0.5570924875 | CP107: 0.7157641376 | CQ107: 0.5959891937
CG108: 0 | CH108: 0 | CI108: -0.7336860873 | CJ108: 0 | CK108: 0 | CL108: 0.2663139127 | CM108: 0
CI109: 6 | CM109: 16
CI110: 最大 | CJ110: 最大^2 | CM110: 石・礫
CG111: 0.868999972 | CH111: 0 | CI111: -0.3204008639 | CJ111: 0 | CK111: 0.77990348 | CL111: -0.3615872567 | CM111: -0.01444092114 | CN111: 0.8109524925 | CO111: 0.5506721908 | CP111: 0.7279921992 | CQ111: 0.5870505648
CG112: 0 | CH112: 0 | CI112: -0.9191802197 | CJ112: 0 | CK112: 0 | CL112: 0 | CM112: -0.08081978032
CI113: 6 | CM113: 17
CI114: 最大 | CJ114: 最大^2 | CM114: 砂
CG115: -0.0098 | CH115: 0 | CI115: -0.906827569 | CJ115: 0 | CK115: 0.4860990244 | CL115: 0.9978981 | CM115: -0.2572330236 | CN115: 0.8115883532 | CO115: 0.5668538817 | CP115: 0.6992724033 | CQ115: 0.6034038343
CG116: 0 | CH116: 0 | CI116: -0.5189282581 | CJ116: 0 | CK116: 0 | CL116: 0 | CM116: -0.4810717419
CI117: 6 | CM117: 18
CI118: 最大 | CJ118: 最大^2 | CM118: 泥
CG119: 1 | CH119: 0 | CI119: -0.8905701041 | CJ119: 0 | CK119: -1 | CL119: -0.876029998 | CM119: -0.006039017811 | CN119: 0.8108941157 | CO119: 0.5503559483 | CP119: 0.7300803972 | CQ119: 0.5849283489
CG120: 0 | CH120: 0 | CI120: -0.9903639769 | CJ120: 0 | CK120: 0 | CL120: 0 | CM120: -0.00963602314
CI121: 6
CI122: 最大 | CJ122: 最大^2
CG123: -0.4971448633 | CH123: 0 | CI123: -0.8435860276 | CJ123: 0 | CK123: -0.01216186139 | CL123: 0.286529627 | CM123: -0.2710462809 | CN123: 0.8108919232 | CO123: 0.550593823 | CP123: 0.7290792976 | CQ123: 0.5856784187
CG124: 0 | CH124: 0 | CI124: -1 | CJ124: 0 | CK124: 0 | CL124: 0 | CM124: 0
CG125: 1 | CI125: 6 | CL125: 11
CG126: 最小 | CH126: 最小^2 | CI126: 最大 | CJ126: 最大^2 | CL126: 抽水植物
CG127: -0.1595226269 | CH127: 0 | CI127: -0.3183890283 | CJ127: 0 | CK127: -0.9997996 | CL127: 0.996497752 | CM127: 1 | CN127: 0.8653095873 | CO127: 0.7740087901 | CP127: 0.7960374795 | CQ127: 0.6218112542
CG128: -0.1095626383 | CH128: 0 | CI128: -0.04628499064 | CJ128: 0 | CK128: 0 | CL128: 0.844152371 | CM128: 0
CG129: 2 | CI129: 6 | CL129: 11
CG130: 最大 | CH130: 最大^2 | CI130: 最大 | CJ130: 最大^2 | CL130: 抽水植物
CG131: -0.818919613 | CH131: 0 | CI131: -0.5164638758 | CJ131: 0 | CK131: 0.185673365 | CL131: 1 | CM131: 1 | CN131: 0.8796313612 | CO131: 0.8251099545 | CP131: 0.6518695021 | CQ131: 0.8008087108
CG132: -0.3523578127 | CH132: 0 | CI132: -0.05272694528 | CJ132: 0 | CK132: 0 | CL132: 0.5949152421 | CM132: 0
CG133: 3 | CI133: 6 | CL133: 11
CG134: 平均 | CH134: 平均^2 | CI134: 最大 | CJ134: 最大^2 | CL134: 抽水植物
CG135: -0.254740092 | CH135: 0 | CI135: -0.3402993083 | CJ135: 0 | CK135: 0.80999501 | CL135: 0.9999953 | CM135: 1 | CN135: 0.8667626619 | CO135: 0.7942901434 | CP135: 0.7622681787 | CQ135: 0.6440176495
CG136: -0.181089757 | CH136: 0 | CI136: -0.04518432687 | CJ136: 0 | CK136: 0 | CL136: 0.7737259161 | CM136: 0
CI137: 6 | CK137: 9 | CL137: 11
CI138: 最大 | CJ138: 最大^2 | CK138: 陸地 | CL138: 抽水植物
CG139: 0.9999999 | CH139: 0 | CI139: -0.4426084459 | CJ139: 0 | CK139: 0.4473081613 | CL139: 0.856196005 | CM139: -0.9960500002 | CN139: 0.8889877557 | CO139: 0.8231907191 | CP139: 0.7483297258 | CQ139: 0.762406089
CG140: 0 | CH140: 0 | CI140: -0.06643338224 | CJ140: 0 | CK140: 0.1847037468 | CL140: 0.7488628709 | CM140: 0
CI141: 6 | CL141: 11 | CM141: 16
CI142: 最大 | CJ142: 最大^2 | CL142: 抽水植物 | CM142: 石・礫
CG143: 1 | CH143: 0 | CI143: -0.2757134438 | CJ143: 0 | CK143: 6.4e-07 | CL143: 0.8351347621 | CM143: -0.008970326744 | CN143: 0.8625997743 | CO143: 0.7749589541 | CP143: 0.7697772784 | CQ143: 0.6308624135
CG144: 0 | CH144: 0 | CI144: -0.05343554806 | CJ144: 0 | CK144: 0 | CL144: 0.9431729165 | CM144: -0.003391535487
CI145: 6 | CL145: 11 | CM145: 17
CI146: 最大 | CJ146: 最大^2 | CL146: 抽水植物 | CM146: 砂
CG147: -0.6714982981 | CH147: 0 | CI147: -0.326343447 | CJ147: 0 | CK147: -1 | CL147: 1 | CM147: -0.002362816129 | CN147: 0.8625413449 | CO147: 0.7759890596 | CP147: 0.7694333898 | CQ147: 0.6298256199
CG148: 0 | CH148: 0 | CI148: -0.05296666163 | CJ148: 0 | CK148: 0 | CL148: 0.9457800294 | CM148: -0.001253308977
CI149: 6 | CL149: 11 | CM149: 18
CI150: 最大 | CJ150: 最大^2 | CL150: 抽水植物 | CM150: 泥
CG151: -0.4536058666 | CH151: 0 | CI151: -0.3390497267 | CJ151: 0 | CK151: -0.9 | CL151: 0.999877446 | CM151: 0.02344902977 | CN151: 0.8628389526 | CO151: 0.7779997092 | CP151: 0.7580786039 | CQ151: 0.6409554027
CG152: 0 | CH152: 0 | CI152: -0.05469236482 | CJ152: 0 | CK152: 0 | CL152: 0.9398802208 | CM152: 0.005427414394
CI153: 6 | CL153: 11
CI154: 最大 | CJ154: 最大^2 | CL154: 抽水植物
CG155: -0.8370583708 | CH155: 0 | CI155: -0.2869083285 | CJ155: 0 | CK155: 0.9785 | CL155: 0.8769753595 | CM155: 0.5308173299 | CN155: 0.8625393729 | CO155: 0.7749141056 | CP155: 0.7707861654 | CQ155: 0.6295359667
CG156: 0 | CH156: 0 | CI156: -0.05315825623 | CJ156: 0 | CK156: 0 | CL156: 0.9468417438 | CM156: 0
CG157: 1 | CI157: 6 | CK157: 9 | CL157: 11
CG158: 最小 | CH158: 最小^2 | CI158: 最大 | CJ158: 最大^2 | CK158: 陸地 | CL158: 抽水植物
CG159: -0.1347995151 | CH159: 0 | CI159: -0.5967066884 | CJ159: 0 | CK159: 0.672018973 | CL159: 0.999998 | CM159: 1 | CN159: 0.8897058441 | CO159: 0.8085118907 | CP159: 0.7532607821 | CQ159: 0.7764623918
CG160: -0.07148087869 | CH160: 0 | CI160: -0.06697370978 | CJ160: 0 | CK160: 0.207504348 | CL160: 0.6540410636 | CM160: 0
CG161: 2 | CI161: 6 | CK161: 9 | CL161: 11
CG162: 最大 | CH162: 最大^2 | CI162: 最大 | CJ162: 最大^2 | CK162: 陸地 | CL162: 抽水植物
CG163: -0.120131966 | CH163: 0 | CI163: -0.7629815936 | CJ163: 0 | CK163: 0.969999 | CL163: 0.999999 | CM163: 0.2796034515 | CN163: 0.8855976291 | CO163: 0.8000422774 | CP163: 0.7078136883 | CQ163: 0.8057298086
CG164: -0.05184825387 | CH164: 0 | CI164: -0.07813392475 | CJ164: 0 | CK164: 0.2732744834 | CL164: 0.596743338 | CM164: 0
CG165: 3 | CI165: 6 | CK165: 9 | CL165: 11
CG166: 平均 | CH166: 平均^2 | CI166: 最大 | CJ166: 最大^2 | CK166: 陸地 | CL166: 抽水植物
CG167: -0.1074765055 | CH167: 0 | CI167: -0.5829823017 | CJ167: 0 | CK167: 0.61231795 | CL167: 0.999669987 | CM167: 1 | CN167: 0.8892169673 | CO167: 0.8165287227 | CP167: 0.7438402069 | CQ167: 0.7749328743
CG168: -0.06638230279 | CH168: 0 | CI168: -0.06725495908 | CJ168: 0 | CK168: 0.1943337135 | CL168: 0.6720290246 | CM168: 0
CI169: 6 | CK169: 9 | CL169: 11 | CM169: 16
CI170: 最大 | CJ170: 最大^2 | CK170: 陸地 | CL170: 抽水植物 | CM170: 石・礫
CG171: 0.98 | CH171: 0 | CI171: -0.5589844584 | CJ171: 0 | CK171: 0.617616314 | CL171: 1 | CM171: 0.003365121549 | CN171: 0.8888293992 | CO171: 0.8190385561 | CP171: 0.7415209988 | CQ171: 0.7724168404
CG172: 0 | CH172: 0 | CI172: -0.06907958472 | CJ172: 0 | CK172: 0.2099766297 | CL172: 0.7201325136 | CM172: 0.0008112720583
CI173: 6 | CK173: 9 | CL173: 11 | CM173: 17
CI174: 最大 | CJ174: 最大^2 | CK174: 陸地 | CL174: 抽水植物 | CM174: 砂
CG175: -0.27899606 | CH175: 0 | CI175: -0.1447304934 | CJ175: 0 | CK175: 0.1830803889 | CL175: 0.272966343 | CM175: 0.03672413528 | CN175: 0.889582582 | CO175: 0.8062192742 | CP175: 0.7719031826 | CQ175: 0.759373035
CG176: 0 | CH176: 0 | CI176: -0.06135101095 | CJ176: 0 | CK176: 0.2135038563 | CL176: 0.6742690367 | CM176: 0.05087609599
CI177: 6 | CK177: 9 | CL177: 11 | CM177: 18
CI178: 最大 | CJ178: 最大^2 | CK178: 陸地 | CL178: 抽水植物 | CM178: 泥
CG179: -1 | CH179: 0 | CI179: -0.6221114993 | CJ179: 0 | CK179: 0.778968315 | CL179: 0.999988 | CM179: -0.04858122766 | CN179: 0.8879304021 | CO179: 0.8042323943 | CP179: 0.7531338558 | CQ179: 0.7702161627
CG180: 0 | CH180: 0 | CI180: -0.07182092665 | CJ180: 0 | CK180: 0.2474028992 | CL180: 0.6727287654 | CM180: -0.008047408755
CI181: 6 | CK181: 9 | CL181: 11
CI182: 最大 | CJ182: 最大^2 | CK182: 陸地 | CL182: 抽水植物
CG183: -1 | CH183: 0 | CI183: -0.5209287405 | CJ183: 0 | CK183: 0.5444651301 | CL183: 0.994969005 | CM183: -0.999999702 | CN183: 0.8890325364 | CO183: 0.8238276916 | CP183: 0.7445901345 | CQ183: 0.7657773921
CG184: 0 | CH184: 0 | CI184: -0.06664297208 | CJ184: 0 | CK184: 0.1916233047 | CL184: 0.7417337232 | CM184: 0
CG185: 1 | CI185: 6 | CK185: 9 | CL185: 11 | CM185: 16
CG186: 最小 | CH186: 最小^2 | CI186: 最大 | CJ186: 最大^2 | CK186: 陸地 | CL186: 抽水植物 | CM186: 石・礫
CG187: 0.617331906 | CH187: 0 | CI187: -0.715203166 | CJ187: 0 | CK187: 0.999999798 | CL187: 0.999999999 | CM187: 0.2370510995 | CN187: 0.877190838 | CO187: 0.7956682959 | CP187: 0.7014010255 | CQ187: 0.7660757064
CG188: 0.2301509326 | CH188: 0 | CI188: -0.05643718471 | CJ188: 0 | CK188: 0.2170891119 | CL188: 0.4598311069 | CM188: 0.0364916638
CG189: 1 | CI189: 6 | CK189: 9 | CL189: 11 | CM189: 17
CG190: 最小 | CH190: 最小^2 | CI190: 最大 | CJ190: 最大^2 | CK190: 陸地 | CL190: 抽水植物 | CM190: 砂
CG191: -0.001212406472 | CH191: 0 | CI191: -0.5422390699 | CJ191: 0 | CK191: 0.695833996 | CL191: 0.999 | CM191: 0.2231246531 | CN191: 0.889005308 | CO191: 0.7859204442 | CP191: 0.8026132837 | CQ191: 0.7454981204
CG192: -0.0006355407611 | CH192: 0 | CI192: -0.06016277608 | CJ192: 0 | CK192: 0.212395309 | CL192: 0.645899553 | CM192: 0.08090682118
CG193: 1 | CI193: 6 | CK193: 9 | CL193: 11 | CM193: 18
CG194: 最小 | CH194: 最小^2 | CI194: 最大 | CJ194: 最大^2 | CK194: 陸地 | CL194: 抽水植物 | CM194: 泥
CG195: 0.599849366 | CH195: 0 | CI195: -0.6697311997 | CJ195: 0 | CK195: 0.99783 | CL195: 0.9999799 | CM195: -0.2379588485 | CN195: 0.8825921328 | CO195: 0.7908427755 | CP195: 0.7670540813 | CQ195: 0.7376559402
CG196: 0.228228585 | CH196: 0 | CI196: -0.05393494775 | CJ196: 0 | CK196: 0.2210693349 | CL196: 0.4692706973 | CM196: -0.02749643504
CG197: 1 | CI197: 6 | CK197: 9 | CL197: 11
CG198: 最小 | CH198: 最小^2 | CI198: 最大 | CJ198: 最大^2 | CK198: 陸地 | CL198: 抽水植物
CG199: -0.1772926387 | CH199: 0 | CI199: -0.7759519815 | CJ199: 0 | CK199: 0.959969997 | CL199: 0.999999996 | CM199: -0.9750000238 | CN199: 0.8853731574 | CO199: 0.7807163875 | CP199: 0.7458271874 | CQ199: 0.7856953694
CG200: -0.08308307688 | CH200: 0 | CI200: -0.07696594603 | CJ200: 0 | CK200: 0.2619531599 | CL200: 0.5779978172 | CM200: 0

Sheet 評価用
A1: 評価用シート | L1: 調査の２年目（２回目）以降に、環境データから各調査区間のスコアを計算するためのシートです。 操作手順 （１）環境調査のデータを入力し、⑦のボタンを押してください。AA～AW列が自動計算され、グラフが更新されます。 ※未計測のセルは、空欄にしてください。 ※グラフのレイアウトが乱れる場合があります。この場合には、適宜グラフの設定を変更してください。
D2: 水路幅（cm） | E2: 水深（cm） | H2: 流速（cm/秒） | Q2: 陸地（cm） | R2: 沈水植物の幅（cm） | S2: 抽水植物の幅（cm） | T2: 垂下植物の幅（cm） | U2: リタ― （ｃｍ） | V2: 河床材料％ | AA2: 計算結果
B3: 調査区間名 | AB3: 水路幅（cm） | AC3: 水深（cm） | AG3: 流速（cm/s） | AK3: 陸地（％） | AL3: 沈水植物（％） | AM3: 抽水植物（％） | AN3: 垂下植物（％） | AO3: リタ―（％） | AP3: 全植物（％） | AQ3: 全カバー（％） | AR3: 河床材料（％） | AV3: N | AW3: 評価 スコア | AZ3: 水路幅cm | BA3: 水深cm | BE3: 流速cm/s | BI3: 陸地％ | BJ3: 沈水植物％ | BK3: 抽水植物％ | BL3: 垂下植物％ | BM3: リタ― | BN3: 全植物％ | BO3: 全カバー | BP3: 河床材料％ | CB3: 2 | CD3: 6 | CF3: 9 | CG3: 11 | CH3: 17
E4: 左 | F4: 中 | G4: 右 | H4: 左 1回目 | I4: 2回目 | J4: 3回目 | K4: 中 1回目 | L4: 2回目 | M4: 3回目 | N4: 右 1回目 | O4: 2回目 | P4: 3回目 | V4: 石・礫 | W4: 砂 | X4: 泥 | Y4: ｺﾝｸﾘｰﾄ | AA4: 調査区間 | AC4: 最小 | AD4: 最大 | AE4: 平均 | AF4: 標準偏差 | AG4: 最小 | AH4: 最大 | AI4: 平均 | AJ4: 標準偏差 | AR4: 石・礫 | AS4: 砂 | AT4: 泥 | AU4: ｺﾝｸﾘｰﾄ | AY4: 調査地点 | BA4: 最小 | BB4: 最大 | BC4: 平均 | BD4: 標準偏差 | BE4: 最小 | BF4: 最大 | BG4: 平均 | BH4: 標準偏差 | BP4: 石・礫 | BQ4: 砂 | BR4: 泥 | BS4: ｺﾝｸﾘｰﾄ | CB4: 最大 | CD4: 最大 | CF4: 陸地 | CG4: 抽水植物 | CH4: 砂
A5: 1 | AY5: =AY11 -> 区間10 | AZ5: =AVERAGE(BA11:BA20) -> 400 | BA5: =MIN(BB11:BD20) -> 23 | BB5: =MAX(BB11:BD20) -> 45 | BC5: =AVERAGE(BB11:BD20) -> 32.93333333 | BD5: =STDEVP(BB11:BD20) -> 6.287200402 | BE5: =MIN(BW11:BY20) -> 24.5 | BF5: =MAX(BW11:BY20) -> 50.5 | BG5: =AVERAGE(BW11:BY20) -> 35.5 | BH5: =STDEVP(BW11:BY20) -> 10.15874008 | BI5: =AVERAGE(BN11:BN20) -> 0 | BJ5: =AVERAGE(BO11:BO20) -> 1.5 | BK5: 0 | BL5: 17 | BM5: =AVERAGE(BR11:BR20) -> 0 | BN5: =IFERROR(BJ5,0)+IFERROR(BK5,0)+IFERROR(BL5,0) -> 18.5 | BO5: =MIN(BN5+IFERROR(BM5,0),100) -> 18.5 | BP5: =AVERAGE(BS11:BS20) -> 62 | BQ5: =AVERAGE(BT11:BT20) -> 22 | BR5: =AVERAGE(BU11:BU20) -> 16 | BS5: =AVERAGE(BV11:BV20) -> 0 | CB5: -0.05114114979 | CD5: -0.06452269313 | CF5: 0.03491950319 | CG5: 0.1976762385 | CH5: 0.05614354533 | CI5: 7.339022621 | CK5: =SUM(CI8:CI47) -> 10
A6: 2 | AY6: N | AZ6: =COUNT(BA11:BA20) -> 5 | BA6: =COUNT(BB11:BD20) -> 15 | BB6: =COUNT(BB11:BD20) -> 15 | BC6: =COUNT(BB11:BD20) -> 15 | BD6: =COUNT(BB11:BD20) -> 15 | BE6: =COUNT(BW11:BY20) -> 5 | BF6: =COUNT(BW11:BY20) -> 5 | BG6: =COUNT(BW11:BY20) -> 5 | BH6: =COUNT(BW11:BY20) -> 5 | BI6: =COUNT(BN11:BN20) -> 5 | BJ6: =COUNT(BO11:BO20) -> 5 | BK6: 5 | BL6: 5 | BM6: 5 | BN6: =COUNT(BO11:BQ20) -> 15 | BO6: =COUNT(BO11:BR20) -> 20 | BP6: =COUNT(BS11:BS20) -> 5 | BQ6: 5 | BR6: 5 | BS6: =COUNT(BV11:BV20) -> 5
A7: 3 | CI7: データ有無 | CJ7: スコア | CK7: スコア（1-5）
A8: 4 | CA8: 1 | CB8: 40 | CD8: 45.5 | CF8: 5 | CG8: 0 | CH8: 30 | CI8: =IF(COUNT(CB8:CH8)>0,1,0) -> 1 | CJ8: =IF(CI8=1,SUMPRODUCT($CB$5:$CH$5,CB8:CH8)+$CI$5,0) -> 4.216497968 | CK8: =IF(CJ8>5,5,IF(CJ8<1,1,ROUND(CJ8,0))) -> 4
A9: 5 | BA9: 水路幅（cm） | BB9: 水深（cm） | BE9: 流速（cm/秒） | BN9: 陸地（cm） | BO9: 沈水植物の幅（cm） | BP9: 抽水植物の幅（cm） | BQ9: 垂下植物の幅（cm） | BR9: リタ― （ｃｍ） | BS9: 河床材料％ | BW9: 流速 | CA9: 2 | CB9: 43 | CD9: 42.5 | CF9: 4.5 | CG9: 0 | CH9: 16 | CI9: =IF(COUNT(CB9:CH9)>0,1,0) -> 1 | CJ9: =IF(CI9=1,SUMPRODUCT($CB$5:$CH$5,CB9:CH9)+$CI$5,0) -> 3.453173212 | CK9: =IF(CJ9>5,5,IF(CJ9<1,1,ROUND(CJ9,0))) -> 3
A10: 6 | AY10: 調査地点 | BB10: 左 | BC10: 中 | BD10: 右 | BE10: 左 | BH10: 中 | BK10: 右 | BS10: 石・礫 | BT10: 砂 | BU10: 泥 | BV10: ｺﾝｸﾘｰﾄ | BW10: 左 | BX10: 中 | BY10: 右 | CA10: 3 | CB10: 40 | CD10: 42.5 | CF10: 10.5 | CG10: 1.5 | CH10: 14 | CI10: 1 | CJ10: 4.000340947 | CK10: 4
A11: 7 | AY11: 区間10 | AZ11: 1 | BA11: 400 | BB11: 32 | BC11: 31 | BD11: 38 | BH11: 24 | BI11: 25 | BN11: 0 | BO11: 2.5 | BP11: 0 | BQ11: 30 | BR11: 0 | BS11: 40 | BT11: 30 | BU11: 30 | BV11: 0 | BX11: 24.5 | CA11: 4 | CB11: 40 | CD11: 31.5 | CF11: 8 | CG11: 0 | CH11: 26 | CI11: 1 | CJ11: 5 | CK11: 5
A12: 8 | AZ12: 2 | BA12: 400 | BB12: 35 | BC12: 33 | BD12: 34 | BH12: 35 | BI12: 36 | BN12: 0 | BO12: 0 | BP12: 0 | BQ12: 35 | BR12: 0 | BS12: 60 | BT12: 40 | BU12: 0 | BV12: 0 | BX12: 35.5 | CA12: 5 | CB12: 38 | CD12: 45.5 | CF12: 1 | CG12: 0 | CH12: 16 | CI12: 1 | CJ12: 3.39309262 | CK12: 3
A13: 9 | AZ13: 3 | BA13: 400 | BB13: 40 | BC13: 45 | BD13: 43 | BH13: 50 | BI13: 51 | BN13: 0 | BO13: 0 | BP13: 0 | BQ13: 20 | BR13: 0 | BS13: 40 | BT13: 30 | BU13: 30 | BV13: 0 | BX13: 50.5 | CA13: 6 | CB13: 30 | CD13: 66.5 | CF13: 10.5 | CG13: 0 | CH13: 10 | CI13: 1 | CJ13: 2.442119271 | CK13: 2
A14: 10 | AZ14: 4 | BA14: 400 | BB14: 26 | BC14: 23 | BD14: 24 | BH14: 42 | BI14: 43 | BN14: 0 | BO14: 5 | BP14: 0 | BQ14: 0 | BR14: 0 | BS14: 80 | BT14: 10 | BU14: 10 | BV14: 0 | BX14: 42.5 | CA14: 7 | CB14: 32 | CD14: 95.5 | CF14: 22.5 | CG14: 0 | CH14: 12 | CI14: 1 | CJ14: 1 | CK14: 1
A15: 11 | AZ15: 5 | BA15: 400 | BB15: 30 | BC15: 28 | BD15: 32 | BH15: 24 | BI15: 25 | BN15: 0 | BO15: 0 | BP15: 0 | BQ15: 0 | BR15: 0 | BS15: 90 | BT15: 0 | BU15: 10 | BV15: 0 | BX15: 24.5 | CA15: 8 | CB15: 27 | CD15: 89.5 | CF15: 26.5 | CG15: 9 | CH15: 6 | CI15: 1 | CJ15: 3.224744795 | CK15: 3
A16: 12 | CA16: 9 | CB16: 38 | CD16: 95.5 | CF16: 16.5 | CG16: 11 | CH16: 12 | CI16: 1 | CJ16: 2.658074705 | CK16: 3
A17: 13 | CA17: 10 | CB17: 45 | CD17: 50.5 | CF17: 0 | CG17: 0 | CH17: 22 | CI17: 1 | CJ17: 3.014432875 | CK17: 3
A18: 14 | CA18: 11 | CI18: 0 | CJ18: 0 | CK18: 1
A19: 15 | CA19: 12 | CI19: 0 | CJ19: 0 | CK19: 1
A20: 16 | CA20: 13 | CI20: 0 | CJ20: 0 | CK20: 1
A21: 17 | CA21: 14 | CI21: 0 | CJ21: 0 | CK21: 1
A22: 18 | CA22: 15 | CI22: 0 | CJ22: 0 | CK22: 1
A23: 19 | CA23: 16 | CI23: 0 | CJ23: 0 | CK23: 1
A24: 20 | CA24: 17 | CI24: 0 | CJ24: 0 | CK24: 1
A25: 21 | CA25: 18 | CI25: 0 | CJ25: 0 | CK25: 1
A26: 22 | CA26: 19 | CI26: 0 | CJ26: 0 | CK26: 1
A27: 23 | CA27: 20 | CI27: =IF(COUNT(CB27:CH27)>0,1,0) -> 0 | CJ27: 0 | CK27: 1
A28: 24 | CA28: 21 | CI28: 0 | CJ28: 0 | CK28: 1
A29: 25 | CA29: 22 | CI29: 0 | CJ29: 0 | CK29: 1
A30: 26 | CA30: 23 | CI30: 0 | CJ30: 0 | CK30: 1
A31: 27 | CA31: 24 | CI31: 0 | CJ31: 0 | CK31: 1
A32: 28 | CA32: 25 | CI32: 0 | CJ32: 0 | CK32: 1
A33: 29 | CA33: 26 | CI33: 0 | CJ33: 0 | CK33: 1
A34: 30 | CA34: 27 | CI34: 0 | CJ34: 0 | CK34: 1
A35: 31 | CA35: 28 | CI35: 0 | CJ35: 0 | CK35: 1
A36: 32 | CA36: 29 | CI36: 0 | CJ36: 0 | CK36: 1
A37: 33 | CA37: 30 | CI37: 0 | CJ37: 0 | CK37: 1
A38: 34 | CA38: 31 | CI38: 0 | CJ38: 0 | CK38: 1
A39: 35 | CA39: 32 | CI39: 0 | CJ39: 0 | CK39: 1
A40: 36 | CA40: 33 | CI40: 0 | CJ40: 0 | CK40: 1
A41: 37 | CA41: 34 | CI41: 0 | CJ41: 0 | CK41: 1
A42: 38 | CA42: 35 | CI42: 0 | CJ42: 0 | CK42: 1
A43: 39 | CA43: 36 | CI43: 0 | CJ43: 0 | CK43: 1
A44: 40 | CA44: 37 | CI44: 0 | CJ44: 0 | CK44: 1
A45: 41 | CA45: 38 | CI45: =IF(COUNT(CB45:CH45)>0,1,0) -> 0 | CJ45: =IF(CI45=1,SUMPRODUCT($CB$5:$CH$5,CB45:CH45)+$CI$5,0) -> 0 | CK45: =IF(CJ45>5,5,IF(CJ45<1,1,ROUND(CJ45,0))) -> 1
A46: 42 | CA46: 39 | CI46: 0 | CJ46: 0 | CK46: 1
A47: 43 | CA47: 40 | CI47: 0 | CJ47: 0 | CK47: 1
A48: 44 | CA48: 41 | CI48: 0 | CJ48: 0 | CK48: 1
A49: 45 | CA49: 42 | CI49: 0 | CJ49: 0 | CK49: 1
A50: 46 | CA50: 43 | CI50: 0 | CJ50: 0 | CK50: 1
A51: 47 | CA51: 44 | CI51: 0 | CJ51: 0 | CK51: 1
A52: 48 | CA52: 45 | CI52: 0 | CJ52: 0 | CK52: 1
A53: 49 | CA53: 46 | CI53: 0 | CJ53: 0 | CK53: 1
A54: 50 | CA54: 47 | CI54: 0 | CJ54: 0 | CK54: 1
A55: 51 | CA55: 48 | CI55: 0 | CJ55: 0 | CK55: 1
A56: 52 | CA56: 49 | CI56: 0 | CJ56: 0 | CK56: 1
A57: 53 | CA57: 50 | CI57: 0 | CJ57: 0 | CK57: 1
A58: 54 | CA58: 51 | CI58: 0 | CJ58: 0 | CK58: 1
A59: 55 | CA59: 52 | CI59: 0 | CJ59: 0 | CK59: 1
A60: 56 | CA60: 53 | CI60: 0 | CJ60: 0 | CK60: 1
A61: 57 | CA61: 54 | CI61: 0 | CJ61: 0 | CK61: 1
A62: 58 | CA62: 55 | CI62: 0 | CJ62: 0 | CK62: 1
A63: 59 | CA63: 56 | CI63: 0 | CJ63: 0 | CK63: 1
A64: 60 | CA64: 57 | CI64: 0 | CJ64: 0 | CK64: 1
A65: 61 | CA65: 58 | CI65: 0 | CJ65: 0 | CK65: 1
A66: 62 | CA66: 59 | CI66: 0 | CJ66: 0 | CK66: 1
A67: 63 | CA67: 60 | CI67: 0 | CJ67: 0 | CK67: 1
A68: 64
A69: 65
A70: 66
A71: 67
A72: 68
A73: 69
A74: 70
A75: 71
A76: 72
A77: 73
A78: 74
A79: 75
A80: 76
A81: 77
A82: 78
A83: 79
A84: 80
A85: 81
A86: 82
A87: 83
A88: 84
A89: 85
A90: 86
A91: 87
A92: 88
A93: 89
A94: 90
A95: 91
A96: 92
A97: 93
A98: 94
A99: 95
A100: 96
A101: 97
A102: 98
A103: 99
A104: 100
A105: 101
A106: 102
A107: 103
A108: 104
A109: 105
A110: 106
A111: 107
A112: 108
A113: 109
A114: 110
A115: 111
A116: 112
A117: 113
A118: 114
A119: 115
A120: 116
A121: 117
A122: 118
A123: 119
A124: 120
A125: 121
A126: 122
A127: 123
A128: 124
A129: 125
A130: 126
A131: 127
A132: 128
A133: 129
A134: 130
A135: 131
A136: 132
A137: 133
A138: 134
A139: 135
A140: 136
A141: 137
A142: 138
A143: 139
A144: 140
A145: 141
A146: 142
A147: 143
A148: 144
A149: 145
A150: 146
A151: 147
A152: 148
A153: 149
A154: 150
A155: 151
A156: 152
A157: 153
A158: 154
A159: 155
A160: 156
A161: 157
A162: 158
A163: 159
A164: 160
A165: 161
A166: 162
A167: 163
A168: 164
A169: 165
A170: 166
A171: 167
A172: 168
A173: 169
A174: 170
A175: 171
A176: 172
A177: 173
A178: 174
A179: 175
A180: 176
A181: 177
A182: 178
A183: 179
A184: 180
A185: 181
A186: 182
A187: 183
A188: 184
A189: 185
A190: 186
A191: 187
A192: 188
A193: 189
A194: 190
A195: 191
A196: 192
A197: 193
A198: 194
A199: 195
A200: 196
... 21 more rows

Sheet 環境調査_記録用紙
A1: 環境調査 記録用紙
D2: 水路幅（cm） | E2: 水深（cm） | H2: 流速（cm/秒） | Q2: 陸地（cm） | R2: 沈水植物の幅（cm） | S2: 抽水植物の幅（cm） | T2: 垂下植物の幅（cm） | U2: リタ― （ｃｍ） | V2: 河床材料％
B4: 調査区間名 | E4: 左 | F4: 中 | G4: 右 | H4: 左 1回目 | I4: 2回目 | J4: 3回目 | K4: 中 1回目 | L4: 2回目 | M4: 3回目 | N4: 右 1回目 | O4: 2回目 | P4: 3回目 | V4: 石・礫 | W4: 砂 | X4: 泥 | Y4: ｺﾝｸﾘｰﾄ
A5: 1
A6: 2
A7: 3
A8: 4
A9: 5
A10: 6
A11: 7
A12: 8
A13: 9
A14: 10
A15: 11
A16: 12
A17: 13
A18: 14
A19: 15
A20: 16
A21: 17
A22: 18
A23: 19
A24: 20

Sheet 魚類調査_記録用紙
A1: 魚類調査_記録用紙
C2: 1 | D2: 2 | E2: 3 | F2: 4 | G2: 5 | H2: 6 | I2: 7 | J2: 8 | K2: 9 | L2: 10 | M2: 11 | N2: 12 | O2: 13 | P2: 14 | Q2: 15 | R2: 16 | S2: 17 | T2: 18 | U2: 19 | V2: 20
B3: 種名
B4: 調査区間名
A5: 1
A6: 2
A7: 3
A8: 4
A9: 5
A10: 6
A11: 7
A12: 8
A13: 9
A14: 10
A15: 11
A16: 12
A17: 13
A18: 14
A19: 15
A20: 16
A21: 17
A22: 18
A23: 19
A24: 20

Sheet 練習用
A1: 環境データ ※A5～Y54セルをコピーし、環境シートのA5～Y54セルに貼り付けて、ご使用ください。 | AC1: 魚類データ ※AC2～AM14セルをコピーし、魚類シートのA2～K14セルに貼り付けて、ご使用ください。
D2: 水路幅（cm） | E2: 水深（cm） | H2: 流速（cm/秒） | Q2: 陸地（cm） | R2: 沈水植物の幅（cm） | S2: 抽水植物の幅（cm） | T2: 垂下植物の幅（cm） | U2: リタ― （ｃｍ） | V2: 河床材料％ | AF2: 種1 | AG2: 種2 | AH2: 種3 | AI2: 種4 | AJ2: 種5 | AK2: 種6 | AL2: 種7 | AM2: 種8
B3: 調査区間名 | AE3: 種名→ | AF3: アブラハヤ | AG3: ギバチ | AH3: ドジョウ | AI3: モツゴ | AJ3: アカヒレタビラ | AK3: オイカワ | AL3: シマドジョウ | AM3: ヨシノボリ類
E4: 左 | F4: 中 | G4: 右 | H4: 左 1回目 | I4: 2回目 | J4: 3回目 | K4: 中 1回目 | L4: 2回目 | M4: 3回目 | N4: 右 1回目 | O4: 2回目 | P4: 3回目 | V4: 石・礫 | W4: 砂 | X4: 泥 | Y4: ｺﾝｸﾘｰﾄ | AE4: 解析対象→ | AF4: TRUE | AG4: TRUE | AH4: TRUE | AI4: TRUE | AJ4: TRUE | AK4: TRUE | AL4: TRUE | AM4: TRUE
A5: 1 | B5: 区間1 | C5: 1 | D5: 400 | E5: 22 | F5: 20 | G5: 16 | K5: 45 | L5: 46 | Q5: 100 | R5: 0 | S5: 0 | T5: 20 | U5: 0 | V5: 90 | W5: 10 | X5: 0 | Y5: 0 | AC5: 1 | AD5: 区間1 | AF5: 25 | AG5: 42 | AH5: 37 | AI5: 31 | AJ5: 21 | AK5: 6 | AL5: 1 | AM5: 0
A6: 2 | C6: 2 | D6: 400 | E6: 27 | F6: 33 | G6: 34 | K6: 38 | L6: 39 | Q6: 0 | R6: 0 | S6: 0 | T6: 130 | U6: 0 | V6: 70 | W6: 30 | X6: 0 | Y6: 0 | AC6: 2 | AD6: 区間2 | AF6: 34 | AG6: 38 | AH6: 22 | AI6: 16 | AJ6: 4 | AK6: 13 | AL6: 7 | AM6: 2
A7: 3 | C7: 3 | D7: 400 | E7: 24 | F7: 26 | G7: 40 | K7: 40 | L7: 41 | Q7: 0 | R7: 0 | S7: 0 | T7: 200 | U7: 0 | V7: 60 | W7: 40 | X7: 0 | Y7: 0 | AC7: 3 | AD7: 区間3 | AF7: 11 | AG7: 15 | AH7: 26 | AI7: 6 | AJ7: 3 | AK7: 0 | AL7: 5 | AM7: 4
A8: 4 | C8: 4 | D8: 400 | E8: 29 | F8: 32 | G8: 40 | K8: 34 | L8: 35 | Q8: 0 | R8: 10 | S8: 0 | T8: 170 | U8: 0 | V8: 60 | W8: 40 | X8: 0 | Y8: 0 | AC8: 4 | AD8: 区間4 | AF8: 58 | AG8: 30 | AH8: 5 | AI8: 49 | AJ8: 20 | AK8: 10 | AL8: 3 | AM8: 1
A9: 5 | C9: 5 | D9: 400 | E9: 40 | F9: 35 | G9: 37 | K9: 36 | L9: 37 | Q9: 0 | R9: 10 | S9: 0 | T9: 140 | U9: 0 | V9: 70 | W9: 30 | X9: 0 | Y9: 0 | Z9: ← | AA9: 調査区間が連続する場合には、区間の上流端と次区間の下流端には同じデータを入力します。 | AC9: 5 | AD9: 区間5 | AF9: 27 | AG9: 21 | AH9: 9 | AI9: 3 | AJ9: 2 | AK9: 0 | AL9: 1 | AM9: 4
A10: 6 | B10: 区間2 | C10: 1 | D10: 400 | E10: 40 | F10: 35 | G10: 37 | K10: 36 | L10: 37 | Q10: 0 | R10: 10 | S10: 0 | T10: 140 | U10: 0 | V10: 70 | W10: 30 | X10: 0 | Y10: 0 | Z10: ← | AC10: 6 | AD10: 区間6 | AF10: 9 | AG10: 15 | AH10: 4 | AI10: 2 | AJ10: 1 | AK10: 2 | AL10: 0 | AM10: 0
A11: 7 | C11: 2 | D11: 400 | E11: 34 | F11: 42 | G11: 40 | K11: 38 | L11: 39 | Q11: 0 | R11: 20 | S11: 0 | T11: 20 | U11: 0 | V11: 30 | W11: 0 | X11: 70 | Y11: 0 | AC11: 7 | AD11: 区間7 | AF11: 3 | AG11: 0 | AH11: 0 | AI11: 0 | AJ11: 1 | AK11: 1 | AL11: 0 | AM11: 0
A12: 8 | C12: 3 | D12: 400 | E12: 30 | F12: 38 | G12: 43 | K12: 36 | L12: 37 | Q12: 0 | R12: 10 | S12: 0 | T12: 80 | U12: 0 | V12: 30 | W12: 0 | X12: 70 | Y12: 0 | AC12: 8 | AD12: 区間8 | AF12: 16 | AG12: 4 | AH12: 8 | AI12: 4 | AJ12: 2 | AK12: 1 | AL12: 1 | AM12: 0
A13: 9 | C13: 4 | D13: 400 | E13: 33 | F13: 38 | G13: 37 | K13: 35 | L13: 36 | Q13: 50 | R13: 0 | S13: 0 | T13: 100 | U13: 0 | V13: 40 | W13: 30 | X13: 30 | Y13: 0 | AC13: 9 | AD13: 区間9 | AF13: 9 | AG13: 9 | AH13: 44 | AI13: 0 | AJ13: 0 | AK13: 1 | AL13: 1 | AM13: 1
A14: 10 | C14: 5 | D14: 400 | E14: 32 | F14: 34 | G14: 39 | K14: 42 | L14: 43 | Q14: 40 | R14: 0 | S14: 0 | T14: 140 | U14: 0 | V14: 40 | W14: 20 | X14: 40 | Y14: 0 | AC14: 10 | AD14: 区間10 | AF14: 47 | AG14: 3 | AH14: 9 | AI14: 5 | AJ14: 0 | AK14: 0 | AL14: 0 | AM14: 0
A15: 11 | B15: 区間3 | C15: 1 | D15: 400 | E15: 32 | F15: 34 | G15: 39 | K15: 42 | L15: 43 | Q15: 40 | R15: 0 | S15: 0 | T15: 140 | U15: 0 | V15: 40 | W15: 20 | X15: 40 | Y15: 0
A16: 12 | C16: 2 | D16: 400 | E16: 40 | F16: 38 | G16: 40 | K16: 30 | L16: 31 | Q16: 50 | R16: 10 | S16: 0 | T16: 80 | U16: 0 | V16: 40 | W16: 0 | X16: 60 | Y16: 0
A17: 13 | C17: 3 | D17: 400 | E17: 35 | F17: 37 | G17: 40 | K17: 28 | L17: 29 | Q17: 60 | R17: 20 | S17: 0 | T17: 120 | U17: 0 | V17: 40 | W17: 0 | X17: 60 | Y17: 0
A18: 14 | C18: 4 | D18: 400 | E18: 28 | F18: 33 | G18: 37 | K18: 36 | L18: 37 | Q18: 0 | R18: 5 | S18: 30 | T18: 100 | U18: 0 | V18: 50 | W18: 20 | X18: 30 | Y18: 0
A19: 15 | C19: 5 | D19: 400 | E19: 29 | F19: 30 | G19: 33 | K19: 31 | L19: 32 | Q19: 60 | R19: 0 | S19: 0 | T19: 130 | U19: 0 | V19: 70 | W19: 30 | X19: 0 | Y19: 0
A20: 16 | B20: 区間4 | C20: 1 | D20: 400 | E20: 29 | F20: 30 | G20: 33 | K20: 31 | L20: 32 | Q20: 60 | R20: 0 | S20: 0 | T20: 130 | U20: 0 | V20: 70 | W20: 30 | X20: 0 | Y20: 0
A21: 17 | C21: 2 | D21: 400 | E21: 20 | F21: 23 | G21: 27 | K21: 23 | L21: 24 | Q21: 100 | R21: 0 | S21: 0 | T21: 30 | U21: 0 | V21: 80 | W21: 20 | X21: 0 | Y21: 0
A22: 18 | C22: 3 | D22: 400 | E22: 33 | F22: 30 | G22: 40 | K22: 25 | L22: 26 | Q22: 0 | R22: 20 | S22: 0 | T22: 90 | U22: 0 | V22: 70 | W22: 30 | X22: 0 | Y22: 0
A23: 19 | C23: 4 | D23: 400 | E23: 23 | F23: 27 | G23: 30 | K23: 20 | L23: 21 | Q23: 0 | R23: 20 | S23: 0 | T23: 80 | U23: 0 | V23: 70 | W23: 30 | X23: 0 | Y23: 0
A24: 20 | C24: 5 | D24: 400 | E24: 19 | F24: 38 | G24: 36 | K24: 27 | L24: 28 | Q24: 0 | R24: 0 | S24: 0 | T24: 80 | U24: 0 | V24: 80 | W24: 20 | X24: 0 | Y24: 0
A25: 21 | B25: 区間5 | C25: 1 | D25: 400 | E25: 19 | F25: 38 | G25: 36 | K25: 27 | L25: 28 | Q25: 0 | R25: 0 | S25: 0 | T25: 80 | U25: 0 | V25: 80 | W25: 20 | X25: 0 | Y25: 0
A26: 22 | C26: 2 | D26: 400 | E26: 29 | F26: 25 | G26: 31 | K26: 39 | L26: 40 | Q26: 0 | R26: 30 | S26: 0 | T26: 160 | U26: 0 | V26: 70 | W26: 20 | X26: 10 | Y26: 0
A27: 23 | C27: 3 | D27: 400 | E27: 21 | F27: 25 | G27: 20 | K27: 38 | L27: 39 | Q27: 0 | R27: 0 | S27: 0 | T27: 230 | U27: 0 | V27: 70 | W27: 10 | X27: 20 | Y27: 0
A28: 24 | C28: 4 | D28: 400 | E28: 30 | F28: 26 | G28: 26 | K28: 45 | L28: 46 | Q28: 0 | R28: 10 | S28: 0 | T28: 300 | U28: 0 | V28: 70 | W28: 20 | X28: 10 | Y28: 0
A29: 25 | C29: 5 | D29: 400 | E29: 27 | F29: 27 | G29: 24 | K29: 42 | L29: 43 | Q29: 20 | R29: 0 | S29: 0 | T29: 290 | U29: 0 | V29: 70 | W29: 10 | X29: 20 | Y29: 0
A30: 26 | B30: 区間6 | C30: 1 | D30: 400 | E30: 27 | F30: 27 | G30: 24 | K30: 42 | L30: 43 | Q30: 20 | R30: 0 | S30: 0 | T30: 290 | U30: 0 | V30: 70 | W30: 10 | X30: 20 | Y30: 0
A31: 27 | C31: 2 | D31: 400 | E31: 18 | F31: 24 | G31: 30 | K31: 39 | L31: 40 | Q31: 0 | R31: 0 | S31: 0 | T31: 130 | U31: 0 | V31: 60 | W31: 10 | X31: 30 | Y31: 0
A32: 28 | C32: 3 | D32: 400 | E32: 24 | F32: 28 | G32: 26 | K32: 43 | L32: 44 | Q32: 40 | R32: 0 | S32: 0 | T32: 120 | U32: 0 | V32: 60 | W32: 10 | X32: 30 | Y32: 0
A33: 29 | C33: 4 | D33: 400 | E33: 26 | F33: 22 | G33: 25 | K33: 58 | L33: 59 | Q33: 100 | R33: 0 | S33: 0 | T33: 30 | U33: 0 | V33: 60 | W33: 10 | X33: 30 | Y33: 0
A34: 30 | C34: 5 | D34: 400 | E34: 27 | F34: 20 | G34: 20 | K34: 66 | L34: 67 | Q34: 50 | R34: 0 | S34: 0 | T34: 130 | U34: 0 | V34: 40 | W34: 10 | X34: 50 | Y34: 0
A35: 31 | B35: 区間7 | C35: 1 | D35: 400 | E35: 27 | F35: 20 | G35: 20 | K35: 66 | L35: 67 | Q35: 50 | R35: 0 | S35: 0 | T35: 130 | U35: 0 | V35: 40 | W35: 10 | X35: 50 | Y35: 0
A36: 32 | C36: 2 | D36: 400 | E36: 20 | F36: 22 | G36: 13 | K36: 95 | L36: 96 | Q36: 0 | R36: 0 | S36: 0 | T36: 280 | U36: 0 | V36: 60 | W36: 20 | X36: 20 | Y36: 0
A37: 33 | C37: 3 | D37: 400 | E37: 23 | F37: 23 | G37: 22 | K37: 69 | L37: 70 | Q37: 0 | R37: 0 | S37: 0 | T37: 270 | U37: 0 | V37: 50 | W37: 20 | X37: 30 | Y37: 0
A38: 34 | C38: 4 | D38: 400 | E38: 26 | F38: 30 | G38: 32 | K38: 48 | L38: 49 | Q38: 200 | R38: 0 | S38: 0 | T38: 40 | U38: 0 | V38: 30 | W38: 0 | X38: 70 | Y38: 0
A39: 35 | C39: 5 | D39: 400 | E39: 23 | F39: 27 | G39: 26 | K39: 89 | L39: 90 | Q39: 200 | R39: 0 | S39: 0 | T39: 100 | U39: 0 | V39: 40 | W39: 10 | X39: 50 | Y39: 0
A40: 36 | B40: 区間8 | C40: 1 | D40: 400 | E40: 23 | F40: 27 | G40: 26 | K40: 89 | L40: 90 | Q40: 200 | R40: 0 | S40: 0 | T40: 100 | U40: 0 | V40: 40 | W40: 10 | X40: 50 | Y40: 0
A41: 37 | C41: 2 | D41: 400 | E41: 24 | F41: 24 | G41: 20 | K41: 77 | L41: 78 | Q41: 160 | R41: 10 | S41: 0 | T41: 60 | U41: 0 | V41: 60 | W41: 0 | X41: 40 | Y41: 0
A42: 38 | C42: 3 | D42: 400 | E42: 25 | F42: 27 | G42: 25 | K42: 76 | L42: 77 | Q42: 90 | R42: 0 | S42: 0 | T42: 140 | U42: 0 | V42: 80 | W42: 0 | X42: 20 | Y42: 0
A43: 39 | C43: 4 | D43: 400 | E43: 22 | F43: 25 | G43: 27 | K43: 83 | L43: 84 | Q43: 80 | R43: 0 | S43: 0 | T43: 110 | U43: 0 | V43: 50 | W43: 20 | X43: 30 | Y43: 0
A44: 40 | C44: 5 | D44: 400 | E44: 26 | F44: 22 | G44: 25 | K44: 85 | L44: 86 | Q44: 0 | R44: 0 | S44: 180 | T44: 90 | U44: 0 | V44: 60 | W44: 0 | X44: 40 | Y44: 0
A45: 41 | B45: 区間9 | C45: 1 | D45: 400 | E45: 26 | F45: 22 | G45: 25 | K45: 85 | L45: 86 | Q45: 0 | R45: 0 | S45: 180 | T45: 90 | U45: 0 | V45: 60 | W45: 0 | X45: 40 | Y45: 0
A46: 42 | C46: 2 | D46: 400 | E46: 27 | F46: 26 | G46: 20 | K46: 95 | L46: 96 | Q46: 100 | R46: 0 | S46: 0 | T46: 150 | U46: 0 | V46: 40 | W46: 30 | X46: 30 | Y46: 0
A47: 43 | C47: 3 | D47: 400 | E47: 30 | F47: 30 | G47: 30 | K47: 69 | L47: 70 | Q47: 230 | R47: 0 | S47: 40 | T47: 70 | U47: 0 | V47: 70 | W47: 0 | X47: 30 | Y47: 0
A48: 44 | C48: 4 | D48: 400 | E48: 29 | F48: 30 | G48: 31 | K48: 38 | L48: 39 | Q48: 0 | R48: 20 | S48: 0 | T48: 40 | U48: 0 | V48: 0 | W48: 0 | X48: 50 | Y48: 0
A49: 45 | C49: 5 | D49: 400 | E49: 32 | F49: 31 | G49: 38 | K49: 24 | L49: 25 | Q49: 0 | R49: 10 | S49: 0 | T49: 120 | U49: 0 | V49: 40 | W49: 30 | X49: 30 | Y49: 0
A50: 46 | B50: 区間10 | C50: 1 | D50: 400 | E50: 32 | F50: 31 | G50: 38 | K50: 24 | L50: 25 | Q50: 0 | R50: 10 | S50: 0 | T50: 120 | U50: 0 | V50: 40 | W50: 30 | X50: 30 | Y50: 0
A51: 47 | C51: 2 | D51: 400 | E51: 35 | F51: 33 | G51: 34 | K51: 35 | L51: 36 | Q51: 0 | R51: 0 | S51: 0 | T51: 140 | U51: 0 | V51: 60 | W51: 40 | X51: 0 | Y51: 0
A52: 48 | C52: 3 | D52: 400 | E52: 40 | F52: 45 | G52: 43 | K52: 50 | L52: 51 | Q52: 0 | R52: 0 | S52: 0 | T52: 80 | U52: 0 | V52: 40 | W52: 30 | X52: 30 | Y52: 0
A53: 49 | C53: 4 | D53: 400 | E53: 26 | F53: 23 | G53: 24 | K53: 42 | L53: 43 | Q53: 0 | R53: 20 | S53: 0 | T53: 0 | U53: 0 | V53: 80 | W53: 10 | X53: 10 | Y53: 0
A54: 50 | C54: 5 | D54: 400 | E54: 30 | F54: 28 | G54: 32 | K54: 24 | L54: 25 | Q54: 0 | R54: 0 | S54: 0 | T54: 0 | U54: 0 | V54: 90 | W54: 0 | X54: 10 | Y54: 0

Sheet 環境調査_記録用紙 (記入例)
A1: 環境調査 記録用紙
D2: 水路幅（cm） | E2: 水深（cm） | H2: 流速（cm/秒） | Q2: 陸地（cm） | R2: 沈水植物の幅（cm） | S2: 抽水植物の幅（cm） | T2: 垂下植物の幅（cm） | U2: リタ― （ｃｍ） | V2: 河床材料％
B4: 調査区間名 | E4: 左 | F4: 中 | G4: 右 | H4: 左 1回目 | I4: 2回目 | J4: 3回目 | K4: 中 1回目 | L4: 2回目 | M4: 3回目 | N4: 右 1回目 | O4: 2回目 | P4: 3回目 | V4: 石・礫 | W4: 砂 | X4: 泥 | Y4: ｺﾝｸﾘｰﾄ
A5: 1 | B5: 区間1 | C5: 1 | D5: 560 | E5: 17 | F5: 25 | G5: 30 | K5: 20.12072435 | L5: 23.52941176 | Q5: 200 | R5: 0 | S5: 0 | T5: 30 | U5: 0 | V5: 75 | W5: 25 | X5: 0 | Y5: 0
A6: 2 | C6: 2 | D6: 520 | E6: 24 | F6: 28 | G6: 32 | K6: 21.64502165 | L6: 19.60784314 | Q6: 220 | R6: 0 | S6: 0 | T6: 30 | U6: 0 | V6: 80 | W6: 20 | X6: 0 | Y6: 0
A7: 3 | C7: 3 | D7: 470 | E7: 28 | F7: 25 | G7: 25 | K7: 29.58579882 | L7: 25.64102564 | Q7: 150 | R7: 0 | S7: 0 | T7: 150 | U7: 0 | V7: 80 | W7: 20 | X7: 0 | Y7: 0
A8: 4 | C8: 4 | D8: 450 | E8: 25 | F8: 33 | G8: 32 | K8: 19.88071571 | L8: 17.39130435 | Q8: 0 | R8: 5 | S8: 0 | T8: 160 | U8: 0 | V8: 80 | W8: 20 | X8: 0 | Y8: 0
A9: 5 | B9: 区間2 | C9: 1 | D9: 400 | E9: 24 | F9: 31 | G9: 34 | K9: 19.15708812 | L9: 23.52941176 | Q9: 0 | R9: 0 | S9: 0 | T9: 100 | U9: 0 | V9: 80 | W9: 20 | X9: 0 | Y9: 0
A10: 6 | C10: 2 | D10: 400 | E10: 25 | F10: 30 | G10: 23 | K10: 15.03759398 | L10: 15.01501502 | Q10: 0 | R10: 0 | S10: 0 | T10: 0 | U10: 0 | V10: 80 | W10: 20 | X10: 0 | Y10: 0
A11: 7 | C11: 3 | D11: 400 | E11: 30 | F11: 22 | G11: 26 | K11: 14.61988304 | L11: 15.31393568 | Q11: 0 | R11: 0 | S11: 0 | T11: 60 | U11: 0 | V11: 90 | W11: 10 | X11: 0 | Y11: 0
A12: 8 | C12: 4 | D12: 400 | E12: 27 | F12: 30 | G12: 27 | K12: 27.100271 | L12: 23.98081535 | Q12: 0 | R12: 0 | S12: 60 | T12: 90 | U12: 0 | V12: 60 | W12: 0 | X12: 40 | Y12: 0
A13: 9 | B13: 区間3 | C13: 1 | D13: 400 | E13: 24 | F13: 27 | G13: 24 | K13: 19.88071571 | L13: 25 | Q13: 0 | R13: 0 | S13: 90 | T13: 90 | U13: 0 | V13: 60 | W13: 0 | X13: 40 | Y13: 0
A14: 10 | C14: 2 | D14: 400 | E14: 24 | F14: 30 | G14: 37 | K14: 21.59827214 | L14: 20.66115702 | Q14: 0 | R14: 0 | S14: 90 | T14: 80 | U14: 0 | V14: 60 | W14: 0 | X14: 40 | Y14: 0
A15: 11 | C15: 3 | D15: 400 | E15: 25 | F15: 27 | G15: 41 | K15: 23.04147465 | L15: 20.92050209 | Q15: 0 | R15: 0 | S15: 0 | T15: 140 | U15: 0 | V15: 70 | W15: 0 | X15: 30 | Y15: 0
A16: 12 | C16: 4 | D16: 400 | E16: 32 | F16: 34 | G16: 21 | K16: 20.24291498 | L16: 26.66666667 | Q16: 0 | R16: 0 | S16: 80 | T16: 120 | U16: 0 | V16: 80 | W16: 0 | X16: 20 | Y16: 0
A17: 13 | B17: 区間4 | C17: 1 | D17: 400 | E17: 28 | F17: 29 | G17: 31 | K17: 45.66210046 | L17: 41.49377593 | Q17: 90 | R17: 0 | S17: 10 | T17: 130 | U17: 0 | V17: 50 | W17: 0 | X17: 50 | Y17: 0
A18: 14 | C18: 2 | D18: 400 | E18: 25 | F18: 24 | G18: 27 | K18: 40 | L18: 53.47593583 | Q18: 0 | R18: 0 | S18: 270 | T18: 0 | U18: 0 | V18: 30 | W18: 0 | X18: 70 | Y18: 0
A19: 15 | C19: 3 | D19: 400 | E19: 27 | F19: 31 | G19: 22 | K19: 42.73504274 | L19: 32.05128205 | Q19: 140 | R19: 0 | S19: 100 | T19: 80 | U19: 0 | V19: 40 | W19: 0 | X19: 60 | Y19: 0
A20: 16 | C20: 4 | D20: 400 | E20: 23 | F20: 26 | G20: 22 | K20: 46.51162791 | L20: 43.29004329 | Q20: 60 | R20: 0 | S20: 0 | T20: 120 | U20: 0 | V20: 50 | W20: 0 | X20: 50 | Y20: 0
A21: 17 | B21: 区間5 | C21: 1 | D21: 400 | E21: 13 | F21: 23 | G21: 22 | K21: 34.01360544 | L21: 51.8134715 | Q21: 0 | R21: 0 | S21: 130 | T21: 140 | U21: 0 | V21: 60 | W21: 0 | X21: 40 | Y21: 0
A22: 18 | C22: 2 | D22: 400 | E22: 27 | F22: 24 | G22: 26 | K22: 36.36363636 | L22: 23.20185615 | Q22: 0 | R22: 0 | S22: 90 | T22: 0 | U22: 0 | V22: 70 | W22: 0 | X22: 30 | Y22: 0
A23: 19 | C23: 3 | D23: 400 | E23: 30 | F23: 32 | G23: 27 | K23: 46.51162791 | L23: 39.5256917 | Q23: 120 | R23: 0 | S23: 200 | T23: 0 | U23: 0 | V23: 70 | W23: 0 | X23: 30 | Y23: 0
A24: 20 | C24: 4 | D24: 400 | E24: 20 | F24: 31 | G24: 27 | K24: 60.24096386 | L24: 49.26108374 | Q24: 190 | R24: 0 | S24: 80 | T24: 0 | U24: 0 | V24: 70 | W24: 0 | X24: 30 | Y24: 0

Sheet 魚類調査_記録用紙 (記入例)
A1: 魚類調査_記録用紙
C2: 1 | D2: 2 | E2: 3 | F2: 4 | G2: 5 | H2: 6 | I2: 7 | J2: 8 | K2: 9 | L2: 10 | M2: 11 | N2: 12 | O2: 13 | P2: 14 | Q2: 15 | R2: 16 | S2: 17 | T2: 18 | U2: 19 | V2: 20
B3: 種名 | C3: アブラハヤ | D3: ギバチ | E3: ドジョウ | F3: モツゴ | G3: アカヒレタビラ | H3: タイリクバラタナゴ | I3: シマドジョウ | J3: ヨシノボリ類 | K3: オイカワ | L3: ウグイ | M3: ギンブナ
B4: 調査区間名
A5: 1 | B5: 区間1 | C5: 82 | D5: 4 | E5: 6 | F5: 3 | G5: 0 | H5: 0 | I5: 4 | J5: 5 | K5: 2 | L5: 0 | M5: 1
A6: 2 | B6: 区間2 | C6: 25 | D6: 42 | E6: 37 | F6: 31 | G6: 21 | H6: 6 | I6: 1 | J6: 0 | K6: 0 | L6: 0 | M6: 0
A7: 3 | B7: 区間3 | C7: 34 | D7: 38 | E7: 22 | F7: 16 | G7: 4 | H7: 13 | I7: 7 | J7: 2 | K7: 0 | L7: 0 | M7: 0
A8: 4 | B8: 区間4 | C8: 11 | D8: 15 | E8: 26 | F8: 6 | G8: 3 | H8: 0 | I8: 5 | J8: 4 | K8: 0 | L8: 0 | M8: 0
A9: 5 | B9: 区間5 | C9: 58 | D9: 30 | E9: 5 | F9: 49 | G9: 20 | H9: 10 | I9: 3 | J9: 1 | K9: 0 | L9: 0 | M9: 0
A10: 6 | B10: 区間6 | C10: 27 | D10: 21 | E10: 9 | F10: 3 | G10: 2 | H10: 0 | I10: 1 | J10: 4 | K10: 0 | L10: 0 | M10: 0
A11: 7 | B11: 区間7 | C11: 9 | D11: 15 | E11: 4 | F11: 2 | G11: 1 | H11: 2 | I11: 0 | J11: 0 | K11: 0 | L11: 0 | M11: 0
A12: 8 | B12: 区間8 | C12: 3 | D12: 0 | E12: 0 | F12: 0 | G12: 1 | H12: 1 | I12: 0 | J12: 0 | K12: 0 | L12: 0 | M12: 0
A13: 9 | B13: 区間9 | C13: 16 | D13: 4 | E13: 8 | F13: 4 | G13: 2 | H13: 1 | I13: 1 | J13: 0 | K13: 0 | L13: 0 | M13: 0
A14: 10 | B14: 区間10 | C14: 9 | D14: 9 | E14: 44 | F14: 0 | G14: 0 | H14: 1 | I14: 1 | J14: 1 | K14: 0 | L14: 0 | M14: 0
A15: 11
A16: 12
A17: 13
A18: 14
A19: 15
A20: 16
A21: 17
A22: 18
A23: 19
A24: 20
